{"text_format":"1","workbook":"xlsx","n_sheets":16,"sheets":["【填写例】申請者情報","申請者情報","同意书①","出入国歴_別紙","申請人用１","申請人用２","申請人用３","所属機関用１","所属機関用２","学校情報","願書①","願書① (H)","願書②","願書② (H)","経費支弁書","経費支弁書 (H)"],"not_rendered":{"charts":0,"images":1,"macros":1,"external_links":0,"defined_names":15,"comments":2,"pivot_tables":0},"unopened":[],"bounds":{"document_bytes":16777216,"sheet_cells":100000,"rows_first":2000,"rows_last":500,"rows_between":2000,"halvings":0,"cell_chars":16384,"cell_head_chars":4096},"cells_cut":0,"cells_raw":0,"read":"whole","date_system":"1900"}

{"sheet":"【填写例】申請者情報","index":0,"n_rows":48,"n_cols":26,"rows_kept":48,"cut":false,"hidden":false,"merged":[[45,11,45,13],[45,14,45,16],[45,17,45,24],[38,2,38,4],[38,5,38,7],[38,14,38,15],[38,16,38,17],[38,18,38,20],[15,2,15,20],[35,14,35,16],[35,17,35,24],[26,14,26,20],[26,21,26,24],[27,14,27,20],[27,21,27,24],[28,14,28,20],[28,21,28,24],[16,19,16,20],[17,2,17,7],[17,8,17,16],[17,17,17,20],[17,21,17,24],[18,2,18,7],[18,8,18,16],[39,0,42,1],[39,2,42,24],[43,0,49,1],[43,2,43,4],[43,5,43,7],[43,8,43,10],[43,11,43,13],[43,14,43,16],[43,17,43,24],[44,2,44,4],[46,2,46,4],[46,5,46,13],[46,14,46,16],[46,17,46,24],[47,2,49,4],[47,5,49,13],[47,14,49,16],[47,17,49,24],[44,5,44,13],[44,14,44,16],[44,17,44,24],[45,2,45,4],[45,5,45,7],[45,8,45,10],[36,0,38,1],[36,2,36,4],[36,5,36,7],[36,8,36,13],[36,14,36,15],[36,16,36,17],[38,21,38,24],[36,18,36,20],[36,21,36,24],[37,2,37,4],[37,5,37,7],[37,14,37,15],[37,16,37,17],[37,18,37,20],[37,21,37,24],[30,0,35,1],[30,2,30,4],[30,5,30,7],[30,8,30,13],[30,14,30,16],[30,17,30,24],[31,2,31,4],[31,5,31,7],[33,2,33,4],[33,5,33,7],[33,14,33,16],[33,17,33,24],[34,2,34,4],[34,5,34,7],[34,14,34,16],[34,17,34,24],[31,14,31,16],[31,17,31,24],[32,2,32,4],[32,5,32,7],[32,14,32,16],[32,17,32,24],[35,2,35,4],[35,5,35,7],[24,0,29,1],[24,2,24,4],[24,5,24,6],[24,8,24,10],[24,11,24,12],[24,13,24,24],[25,2,25,7],[25,8,25,13],[25,14,25,20],[25,21,25,24],[29,14,29,20],[29,21,29,24],[21,0,23,1],[21,2,21,7],[21,8,21,16],[21,17,21,20],[21,21,21,24],[22,2,22,7],[22,8,22,16],[23,2,23,7],[23,8,23,16],[16,0,20,1],[16,2,16,4],[16,5,16,7],[16,8,16,10],[16,11,16,16],[16,17,16,18],[19,2,19,7],[19,8,19,16],[20,2,20,7],[20,8,20,16],[11,3,11,7],[11,8,11,16],[12,3,12,7],[12,8,12,16],[3,19,3,24],[4,2,4,3],[4,14,4,15],[4,16,4,24],[3,14,3,15],[3,17,3,18],[8,3,8,7],[8,8,8,16],[8,17,8,20],[8,21,8,24],[9,3,9,7],[9,8,9,16],[10,3,10,7],[10,8,10,16],[3,4,3,7],[4,4,4,13],[14,3,14,7],[14,8,14,16],[0,0,1,24],[2,0,6,1],[2,2,2,3],[2,4,2,7],[2,8,2,9],[2,10,2,13],[2,14,2,15],[2,17,2,18],[3,2,3,3],[3,8,3,9],[5,2,5,3],[5,14,5,15],[5,16,5,24],[6,2,6,3],[6,4,6,16],[6,17,6,18],[7,0,15,1],[7,3,7,24],[5,4,5,13],[3,10,3,13],[13,3,13,7],[13,8,13,16]]}
["留 学 申 请 人 信 息 表（23年10月生用）"]
[null,null,null,null,null,null,null,null,null,null,null,null,null,null,null,null,null,null,null,null,null,null,null,null,null,"※请填写表格种的白色区域"]
["申请人基本\n信息",null,"姓名（汉字）",null,"张 行知",null,null,null,"姓名（拼音）",null,"ZHANG XINGZHI",null,null,null,"性别",null,"男","出生年月日",null,2000,"年",3,"月",21,"日","  此表格上信息将用于留学签证的申请，错误信息会导致拒签。"]
[null,null,"国籍",null,"中国",null,null,null,"出生地",null,"上海市",null,null,null,"婚姻状况",null,"未婚","职业",null,"学生",null,null,null,null,null,"  请认真填写此表格，确认信息的正确性。"]
[null,null,"现住址",null,"上海市徐汇区XXX大道XXX号行知小区XXX楼201",null,null,null,null,null,null,null,null,null,"户籍住址",null,"上海市徐汇区XXX大道XXX号行知小区XXX楼201"]
[null,null,"家庭座机",null,"0213364XXXX",null,null,null,null,null,null,null,null,null,"手机",null,15912344321]
[null,null,"护照号码",null,"GH403XXX",null,null,null,null,null,null,null,null,null,null,null,null,"护照期限",null,2030,"年",5,"月",30,"日"]
["学历",null,"最终","※学历信息请按之间顺序填写，并在“最终”列选择“■”，作为自己的最终学历。"]
[null,null,"　","学校名",null,null,null,null,"所在地",null,null,null,null,null,null,null,null,"入学年月",null,null,null,"（预）毕业年月",null,null,null,"※注意“入学年月”和“（预）毕业年月”"]
[null,null,"　","上海市XX第一小学",null,null,null,null,"上海市普陀区XXX路XX号",null,null,null,null,null,null,null,null,2006,"年",9,"月",2008,"年",5,"月","  和学校证明/毕业证上的年月一致"]
[null,null,"　","上海市XX第二小学",null,null,null,null,"上海市普陀区XXX路XX号",null,null,null,null,null,null,null,null,2008,"年",5,"月",2011,"年",6,"月"]
[null,null,"　","上海市XX中学",null,null,null,null,"上海市黄浦区XXX大道XXX号",null,null,null,null,null,null,null,null,2011,"年",9,"月",2015,"年",6,"月"]
[null,null,"　","上海市XX外国语高中",null,null,null,null,"上海市松江中山中路XXX号",null,null,null,null,null,null,null,null,2015,"年",9,"月",2018,"年",6,"月"]
[null,null,"■","上海市XX大学",null,null,null,null,"上海市黄浦区XXXX街道XXX号",null,null,null,null,null,null,null,null,2018,"年",9,"月",2022,"年",7,"月"]
[null,null,"　",null,null,null,null,null,null,null,null,null,null,null,null,null,null,null,"年",null,"月",null,"年",null,"月"]
[null,null,"　学历总年数",null,null,null,null,null,null,null,null,null,null,null,null,null,null,null,null,null,null,{"$f":"IFERROR(DATEDIF(DATEVALUE(R10&\"/\"&T10),DATEVALUE(INDIRECT(\"'\"&\"【填写例】申請者情報\"&\"'\"&\"!V\"&IFERROR(MATCH(\"■\",【填写例】申請者情報!C1:'【填写例】申請者情報'!C14,0),\"未選択\"))&\"/\"&INDIRECT(\"'\"&\"【填写例】申請者情報\"&\"'\"&\"!X\"&IFERROR(MATCH(\"■\",【填写例】申請者情報!C1:'【填写例】申請者情報'!C14,0),\"未選択\"))),\"Y\"),\"未選択\")","v":15},"年",{"$f":"IFERROR(DATEDIF(DATEVALUE(R10&\"/\"&T10),DATEVALUE(INDIRECT(\"'\"&\"【填写例】申請者情報\"&\"'\"&\"!V\"&IFERROR(MATCH(\"■\",【填写例】申請者情報!C1:'【填写例】申請者情報'!C14,0),\"未選択\"))&\"/\"&INDIRECT(\"'\"&\"【填写例】申請者情報\"&\"'\"&\"!X\"&IFERROR(MATCH(\"■\",【填写例】申請者情報!C1:'【填写例】申請者情報'!C14,0),\"未選択\"))),\"YM\"),\"未選択\")","v":10},"月"]
["日语能力",null,"日语相关考试",null,null,"合格",null,null,"考试名称",null,null,"日本語能力試験",null,null,null,null,null,"等级分数\n考试年月",null,"N1",null,2020,"年",12,"月"]
[null,null,"日语培训学校名",null,null,null,null,null,"所在地",null,null,null,null,null,null,null,null,"入学年月",null,null,null,"毕业年月",null,null,null,"※注意“入学年月”和“毕业年月”"]
[null,null,"行知日语培训",null,null,null,null,null,"上海市普陀区XXX路XX号",null,null,null,null,null,null,null,null,2018,"年",6,"月",2018,"年",10,"月","  和相关培训机构或学校开示的日语学时证明上的年月一致"]
[null,null,"三重县国际高中",null,null,null,null,null,"日本三重县XX市XX区XXX号",null,null,null,null,null,null,null,null,2017,"年",10,"月",2018,"年",3,"月"]
[null,null,null,null,null,null,null,null,null,null,null,null,null,null,null,null,null,null,"年",null,"月",null,"年",null,"月"]
["职业经历",null,"所属公司名称",null,null,null,null,null,"所在地",null,null,null,null,null,null,null,null,"入职年月",null,null,null,"离职年月",null,null,null,"※职业经历没有的话可以不写"]
[null,null,null,null,null,null,null,null,null,null,null,null,null,null,null,null,null,null,"年",null,"月",null,"年",null,"月"]
[null,null,null,null,null,null,null,null,null,null,null,null,null,null,null,null,null,null,"年",null,"月",null,"年",null,"月"]
["日本出入境\n履历",null,"次数",null,null,3,null,"回","是否超过4次",null,null,"否",null,"※4次以上入境履历者请选择“是”，并把入境记录填写在“出入国歴_別紙”。"]
[null,null,"日本入境年月日",null,null,null,null,null,"日本出境年月日",null,null,null,null,null,"在留资格",null,null,null,null,null,null,"入境目的",null,null,null,"※注意填写时一定要按照“时间倒序”"]
[null,null,2019,"年",8,"月",10,"日",2019,"年",8,"月",22,"日","観光",null,null,null,null,null,null,"旅游",null,null,null,"  “入境年月日”和“处境年月日” 和护照出入境记录一致"]
[null,null,2017,"年",10,"月",1,"日",2018,"年",3,"月",30,"日","留学",null,null,null,null,null,null,"交换留学"]
[null,null,2011,"年",2,"月",9,"日",2011,"年",2,"月",18,"日","観光",null,null,null,null,null,null,"旅游"]
[null,null,null,"年",null,"月",null,"日",null,"年",null,"月",null,"日"]
["家庭成员\n信息",null,"姓名",null,null,"关系",null,null,"出生年月日",null,null,null,null,null,"职业",null,null,"住址"]
[null,null,"张 华",null,null,"父亲",null,null,1975,"年",4,"月",23,"日","总经理",null,null,"上海市徐汇区XXX大道XXX号行知小区XXX楼201"]
[null,null,"王 婷",null,null,"母亲",null,null,1977,"年",11,"月",6,"日","财务",null,null,"上海市徐汇区XXX大道XXX号行知小区XXX楼201"]
[null,null,"张 佳佳",null,null,"妹妹",null,null,2005,"年",8,"月",8,"日","学生",null,null,"上海市徐汇区XXX大道XXX号行知小区XXX楼201"]
[null,null,null,null,null,null,null,null,null,"年",null,"月",null,"日"]
[null,null,null,null,null,null,null,null,null,"年",null,"月",null,"日"]
["在日亲属\n信息\n（父母、兄弟姐妹、亲戚等）",null,"姓名",null,null,"关系",null,null,"出生年月日",null,null,null,null,null,"国籍",null,"是否同居",null,"所属单位名称",null,null,"在留卡号",null,null,null,"※在日亲属没有的话可以不写"]
[null,null,"なし",null,null,null,null,null,null,"年",null,"月",null,"日"]
[null,null,null,null,null,null,null,null,null,"年",null,"月",null,"日"]
["赴日留学\n理由",null,"我叫张行知，目前就读于上海市XX大学，是一名大四的学生。\n2011年随家人第一次去日本旅游，并且通过这次旅游经历爱上了日本的文化。高中有幸参加了为期半年的交换留学，在日本的三重县XXX国际高中度过了半年非常充实有意义的留学生活。这次短期留学改变了我的生活，通过留学我变得更加独立，更想走出国门看看外面的世界。跟家人商量后，决定在大学毕业后，考取日本的大学院继续深造。为了实现自己的梦想，我申请作为2022年4月生，进入行知日本语学校学习日语。"]
[]
[]
[]
["经费担保人\n信息",null,"氏名",null,null,"王 婷",null,null,"与申请人关系",null,null,"母子",null,null,"电话号码",null,null,15911112222,null,null,null,null,null,null,null,"※注意工作单位信息以及年收入信息"]
[null,null,"现住址",null,null,"上海市徐汇区XXX大道XXX号行知小区XXX楼201",null,null,null,null,null,null,null,null,"户籍住址",null,null,"江苏省扬州市XXX街道XXX小区XXX室",null,null,null,null,null,null,null,"  和“在职证明”、“收入证明”上的信息一致"]
[null,null,"职业",null,null,"财务",null,null,"工作单位电话",null,null,2199998888,null,null,"工作单位名称",null,null,"上海市XXXX有限公司"]
[null,null,"工作单位地址",null,null,"上海市普陀区XXX路XX号",null,null,null,null,null,null,null,null,"年收入（人民币）",null,null,315660]
[null,null,"担保理由",null,null,"我是张行知的妈妈，儿子要去日本追求自己的梦想，我非常支持他。自愿承担儿子在日本学习期间的所有学费寄生活费。",null,null,null,null,null,null,null,null,"学费生活费\n支付方式",null,null,"在日留学期间的学费寄生活费，我会通过海外汇款，定期转账给儿子。"]

{"sheet":"申請者情報","index":1,"n_rows":50,"n_cols":26,"rows_kept":50,"cut":false,"hidden":false,"merged":[[45,11,45,13],[45,14,45,16],[45,17,45,24],[15,2,15,20],[39,0,42,1],[39,2,42,24],[43,0,49,1],[43,2,43,4],[43,5,43,7],[43,8,43,10],[43,11,43,13],[43,14,43,16],[43,17,43,24],[44,2,44,4],[46,2,46,4],[46,5,46,13],[46,14,46,16],[46,17,46,24],[47,2,49,4],[47,5,49,13],[47,14,49,16],[47,17,49,24],[44,5,44,13],[44,14,44,16],[44,17,44,24],[45,2,45,4],[45,5,45,7],[45,8,45,10],[35,14,35,16],[35,17,35,24],[36,0,38,1],[36,2,36,4],[36,5,36,7],[36,8,36,13],[36,14,36,15],[36,16,36,17],[38,2,38,4],[38,5,38,7],[38,14,38,15],[38,16,38,17],[38,18,38,20],[38,21,38,24],[36,18,36,20],[36,21,36,24],[37,2,37,4],[37,5,37,7],[37,14,37,15],[37,16,37,17],[37,18,37,20],[37,21,37,24],[30,0,35,1],[30,2,30,4],[30,5,30,7],[30,8,30,13],[30,14,30,16],[30,17,30,24],[31,2,31,4],[31,5,31,7],[33,2,33,4],[33,5,33,7],[33,14,33,16],[33,17,33,24],[34,2,34,4],[34,5,34,7],[34,14,34,16],[34,17,34,24],[31,14,31,16],[31,17,31,24],[32,2,32,4],[32,5,32,7],[32,14,32,16],[32,17,32,24],[35,2,35,4],[35,5,35,7],[26,14,26,20],[26,21,26,24],[27,14,27,20],[27,21,27,24],[28,14,28,20],[28,21,28,24],[24,0,29,1],[24,2,24,4],[24,5,24,6],[24,8,24,10],[24,11,24,12],[24,13,24,24],[25,2,25,7],[25,8,25,13],[25,14,25,20],[25,21,25,24],[29,14,29,20],[29,21,29,24],[17,21,17,24],[18,2,18,7],[18,8,18,16],[21,17,21,20],[21,21,21,24],[22,2,22,7],[22,8,22,16],[23,2,23,7],[23,8,23,16],[19,2,19,7],[19,8,19,16],[20,2,20,7],[20,8,20,16],[16,0,20,1],[16,2,16,4],[16,5,16,7],[16,8,16,10],[16,11,16,16],[16,17,16,18],[16,19,16,20],[21,0,23,1],[21,2,21,7],[21,8,21,16],[17,2,17,7],[17,8,17,16],[17,17,17,20],[4,14,4,15],[4,16,4,24],[11,3,11,7],[11,8,11,16],[12,3,12,7],[12,8,12,16],[13,3,13,7],[13,8,13,16],[7,0,15,1],[7,3,7,24],[8,3,8,7],[8,8,8,16],[8,17,8,20],[8,21,8,24],[9,3,9,7],[9,8,9,16],[10,3,10,7],[10,8,10,16],[14,3,14,7],[14,8,14,16],[0,0,1,24],[2,0,6,1],[2,2,2,3],[2,4,2,7],[2,8,2,9],[2,10,2,13],[2,14,2,15],[2,17,2,18],[3,2,3,3],[3,4,3,7],[5,2,5,3],[5,4,5,13],[5,14,5,15],[5,16,5,24],[6,2,6,3],[6,4,6,16],[6,17,6,18],[3,8,3,9],[3,10,3,13],[3,14,3,15],[3,17,3,18],[3,19,3,24],[4,2,4,3],[4,4,4,13]]}
["留 学 申 请 人 信 息 表（23年10月生用）"]
[null,null,null,null,null,null,null,null,null,null,null,null,null,null,null,null,null,null,null,null,null,null,null,null,null,"※请填写表格种的白色区域"]
["申请人基本\n信息",null,"姓名（汉字）",null,null,null,null,null,"姓名（拼音）",null,null,null,null,null,"性别",null,null,"出生年月日",null,null,"年",null,"月",null,"日","  此表格上信息将用于留学签证的申请，错误信息会导致拒签。"]
[null,null,"国籍",null,null,null,null,null,"出生地",null,null,null,null,null,"婚姻状况",null,null,"职业",null,null,null,null,null,null,null,"  请认真填写此表格，确认信息的正确性。"]
[null,null,"现住址",null,null,null,null,null,null,null,null,null,null,null,"户籍住址"]
[null,null,"家庭座机",null,null,null,null,null,null,null,null,null,null,null,"手机"]
[null,null,"护照号码",null,null,null,null,null,null,null,null,null,null,null,null,null,null,"护照期限",null,null,"年",null,"月",null,"日"]
["学历",null,"最终","※学历信息请按之间顺序填写，并在“最终”列选择“■”，作为自己的最终学历。"]
[null,null,"　","学校名",null,null,null,null,"所在地",null,null,null,null,null,null,null,null,"入学年月",null,null,null,"（预）毕业年月",null,null,null,"※注意“入学年月”和“（预）毕业年月”"]
[null,null,null,null,null,null,null,null,null,null,null,null,null,null,null,null,null,null,"年",null,"月",null,"年",null,"月","  和学校证明/毕业证上的年月一致"]
[null,null,null,null,null,null,null,null,null,null,null,null,null,null,null,null,null,null,"年",null,"月",null,"年",null,"月"]
[null,null,null,null,null,null,null,null,null,null,null,null,null,null,null,null,null,null,"年",null,"月",null,"年",null,"月"]
[null,null,null,null,null,null,null,null,null,null,null,null,null,null,null,null,null,null,"年",null,"月",null,"年",null,"月"]
[null,null,null,null,null,null,null,null,null,null,null,null,null,null,null,null,null,null,"年",null,"月",null,"年",null,"月"]
[null,null,null,null,null,null,null,null,null,null,null,null,null,null,null,null,null,null,"年",null,"月",null,"年",null,"月"]
[null,null,"　学历总年数",null,null,null,null,null,null,null,null,null,null,null,null,null,null,null,null,null,null,{"$f":"IFERROR(DATEDIF(DATEVALUE(R10&\"/\"&T10),DATEVALUE(INDIRECT(\"'\"&\"申請者情報\"&\"'\"&\"!V\"&IFERROR(MATCH(\"■\",申請者情報!C1:'申請者情報'!C14,0),\"未選択\"))&\"/\"&INDIRECT(\"'\"&\"申請者情報\"&\"'\"&\"!X\"&IFERROR(MATCH(\"■\",申請者情報!C1:'申請者情報'!C14,0),\"未選択\"))),\"Y\"),\"未選択\")","v":"未選択"},"年",{"$f":"IFERROR(DATEDIF(DATEVALUE(R10&\"/\"&T10),DATEVALUE(INDIRECT(\"'\"&\"申請者情報\"&\"'\"&\"!V\"&IFERROR(MATCH(\"■\",申請者情報!C1:'申請者情報'!C14,0),\"未選択\"))&\"/\"&INDIRECT(\"'\"&\"申請者情報\"&\"'\"&\"!X\"&IFERROR(MATCH(\"■\",申請者情報!C1:'申請者情報'!C14,0),\"未選択\"))),\"YM\"),\"未選択\")","v":"未選択"},"月"]
["日语能力",null,"日语相关考试",null,null,null,null,null,"考试名称",null,null,null,null,null,null,null,null,"等级分数\n考试年月",null,null,null,null,"年",null,"月"]
[null,null,"日语培训学校名",null,null,null,null,null,"所在地",null,null,null,null,null,null,null,null,"入学年月",null,null,null,"毕业年月",null,null,null,"※注意“入学年月”和“毕业年月”"]
[null,null,null,null,null,null,null,null,null,null,null,null,null,null,null,null,null,null,"年",null,"月",null,"年",null,"月","  和相关培训机构或学校开示的日语学时证明上的年月一致"]
[null,null,null,null,null,null,null,null,null,null,null,null,null,null,null,null,null,null,"年",null,"月",null,"年",null,"月"]
[null,null,null,null,null,null,null,null,null,null,null,null,null,null,null,null,null,null,"年",null,"月",null,"年",null,"月"]
["职业经历",null,"所属公司名称",null,null,null,null,null,"所在地",null,null,null,null,null,null,null,null,"入职年月",null,null,null,"离职年月",null,null,null,"※职业经历没有的话可以不写"]
[null,null,null,null,null,null,null,null,null,null,null,null,null,null,null,null,null,null,"年",null,"月",null,"年",null,"月"]
[null,null,null,null,null,null,null,null,null,null,null,null,null,null,null,null,null,null,"年",null,"月",null,"年",null,"月"]
["日本出入境\n履历",null,"次数",null,null,null,null,"回","是否超过4次",null,null,null,null,"※4次以上入境履历者请选择“是”，并把入境记录填写在“出入国歴_別紙”。"]
[null,null,"日本入境年月日",null,null,null,null,null,"日本出境年月日",null,null,null,null,null,"在留资格",null,null,null,null,null,null,"入境目的",null,null,null,"※注意填写时一定要按照“时间倒序”"]
[null,null,null,"年",null,"月",null,"日",null,"年",null,"月",null,"日",null,null,null,null,null,null,null,null,null,null,null," “入境年月日”和“处境年月日” 和护照出入境记录一致"]
[null,null,null,"年",null,"月",null,"日",null,"年",null,"月",null,"日"]
[null,null,null,"年",null,"月",null,"日",null,"年",null,"月",null,"日"]
[null,null,null,"年",null,"月",null,"日",null,"年",null,"月",null,"日"]
["家庭成员\n信息",null,"姓名",null,null,"关系",null,null,"出生年月日",null,null,null,null,null,"职业",null,null,"住址"]
[null,null,null,null,null,null,null,null,null,"年",null,"月",null,"日"]
[null,null,null,null,null,null,null,null,null,"年",null,"月",null,"日"]
[null,null,null,null,null,null,null,null,null,"年",null,"月",null,"日"]
[null,null,null,null,null,null,null,null,null,"年",null,"月",null,"日"]
[null,null,null,null,null,null,null,null,null,"年",null,"月",null,"日"]
["在日亲属\n信息\n（父母、兄弟姐妹、亲戚等）",null,"姓名",null,null,"关系",null,null,"出生年月日",null,null,null,null,null,"国籍",null,"是否同居",null,"所属单位名称",null,null,"在留卡号",null,null,null,"※在日亲属没有的话可以不写"]
[null,null,null,null,null,null,null,null,null,"年",null,"月",null,"日"]
[null,null,null,null,null,null,null,null,null,"年",null,"月",null,"日"]
["赴日留学\n理由"]
[]
[]
[]
["经费担保人\n信息",null,"氏名",null,null,null,null,null,"与申请人关系",null,null,null,null,null,"电话号码",null,null,null,null,null,null,null,null,null,null,"※注意工作单位信息以及年收入信息"]
[null,null,"现住址",null,null,null,null,null,null,null,null,null,null,null,"户籍住址",null,null,null,null,null,null,null,null,null,null,"  和“在职证明”、“收入证明”上的信息一致"]
[null,null,"职业",null,null,null,null,null,"工作单位电话",null,null,null,null,null,"工作单位名称"]
[null,null,"工作单位地址",null,null,null,null,null,null,null,null,null,null,null,"年收入（人民币）"]
[null,null,"担保理由",null,null,null,null,null,null,null,null,null,null,null,"学费生活费\n支付方式"]
[]
[null,null,null,null,null,null,null,null,null,null,null,null,null,null,null,null,null,null,null,null,null,null,null,null,null,0]

{"sheet":"同意书①","index":2,"n_rows":42,"n_cols":17,"rows_kept":42,"cut":false,"hidden":false,"merged":[[15,0,15,15],[4,0,5,15],[7,0,10,15],[12,0,12,15],[13,0,13,15],[14,0,14,15],[27,0,27,15],[16,0,16,15],[17,0,17,15],[18,0,18,15],[19,0,19,15],[20,0,20,15],[21,0,21,15],[22,0,22,15],[23,0,23,15],[24,0,24,15],[25,0,25,15],[26,0,26,15],[35,0,35,8],[36,0,36,15],[37,0,38,15],[28,0,28,15],[29,0,29,15],[30,0,30,15],[31,0,31,15],[32,0,33,15],[34,0,34,15]]}
[]
[]
[]
[]
["关于学生道德行为规范的同意书"]
[]
[]
["    赴日本前，触犯以下行为者，将劝退学或取消其入学资格。赴日后，若触犯以下行为，将取消该生所有获得奖励的资格(如校内外奖学金、学费减免、大学推荐等等)，若该生继续无视学校警告，屡教不改，将劝退学或开除学籍。并记入至该生档案，提交给日本入国管理厅。"]
[]
[]
[]
[]
["1.不遵守上课时间，多次迟到、早退、旷课。"]
["2.上课不配合老师安排，妨碍课堂秩序。"]
["3.考试作弊、作业代写、抄袭他人作业等，不诚信行为。"]
["4.学习态度不端正，缺乏主动性，成绩无涨幅。"]
["5.谈恋爱导致出席率、成绩下降。"]
["6.不尊敬师长，欺负同学，使用不文明用语，打架闹事。"]
["7.不尊重他人人格、宗教信仰和民族风俗习惯。"]
["8.学生及家长使用社交媒体(如微信、微博、知乎、贴吧、QQ等)公开发表有损于他人或学校名誉的不恰当言论。"]
["9.拖欠学费，为参与奖学金提交虚假资料。"]
["10.不遵守日本法律，未满20岁在公共场所抽烟、喝酒；出入酒吧、夜店等不健康场所。"]
["11.夜不归宿，带异性回宿舍，未成年同居等不检点行为。"]
["12.违反宿舍规定，不讲究卫生，乱放私人用品，侵占公共面积，导致影响其他人生活，作息，学习。"]
["13.不爱护公物，涂抹或刻画，故意损坏公共设施。"]
["14.卫生习惯不好，作为学生仪容仪表不得体。"]
["15.物质上相互攀比，摆阔，价值观扭曲。"]
["16.向学校隐瞒打工单位，打工超时，从事违反在留资格活动许可以外的工作。 "]
["17.私下举行集会，赌博，参加封建迷信活动。"]
["18.偷窃、诈骗集体或私人财物。"]
["19.违背中日道德常识，有损于两国形象或关系的一切行为。"]
["20.违反校规校纪和日本法律的一切行为。"]
["21.父母或其他监护人不积极配合学校工作，拒绝参与学校活动，违背“家校联合教育”的基\n   本思想，推卸教育责任，影响学校工作顺利进行。"]
[]
["22.为办理签证提交虚假资料，隐瞒学生病史，隐瞒家庭成员拒签史。"]
[]
["同意者，请在下方签名"]
["我已阅读以上规定，并同意按照以上规定尊重和配合学校的管理工作，遵纪守法，努力学习，有决心完成在日本留学的计划。"]
[]
[null,null,null,null,null,null,null,null,null,null,null,"年",null,"月",null,"日","※请将本页下载打印后；填写日期以及签名。"]
["学生签名  ："]
["担保人签名："]

{"sheet":"出入国歴_別紙","index":3,"n_rows":29,"n_cols":28,"rows_kept":29,"cut":false,"hidden":false,"merged":[[28,25,28,26],[27,23,28,24],[25,1,25,2],[25,9,25,10],[25,17,25,21],[25,23,25,26],[27,25,27,26],[23,1,23,2],[23,9,23,10],[23,17,23,21],[23,23,23,26],[24,1,24,2],[24,9,24,10],[24,17,24,21],[24,23,24,26],[21,1,21,2],[21,9,21,10],[21,17,21,21],[21,23,21,26],[22,1,22,2],[22,9,22,10],[22,17,22,21],[22,23,22,26],[19,1,19,2],[19,9,19,10],[19,17,19,21],[19,23,19,26],[20,1,20,2],[20,9,20,10],[20,17,20,21],[20,23,20,26],[17,1,17,2],[17,9,17,10],[17,17,17,21],[17,23,17,26],[18,1,18,2],[18,9,18,10],[18,17,18,21],[18,23,18,26],[15,1,15,2],[15,9,15,10],[15,17,15,21],[15,23,15,26],[16,1,16,2],[16,9,16,10],[16,17,16,21],[16,23,16,26],[12,17,12,21],[12,23,12,26],[13,17,13,21],[13,23,13,26],[14,17,14,21],[14,23,14,26],[9,17,9,21],[9,23,9,26],[10,17,10,21],[10,23,10,26],[11,17,11,21],[11,23,11,26],[13,1,13,2],[14,1,14,2],[9,9,9,15],[10,9,10,15],[11,9,11,10],[12,9,12,10],[13,9,13,10],[14,9,14,10],[9,1,9,7],[10,1,10,7],[11,1,11,2],[12,1,12,2],[1,21,1,25],[1,1,1,2],[1,3,1,5],[1,6,1,8],[1,9,1,10],[1,11,1,13],[1,14,1,20]]}
[]
[]
[]
[null,"日本国出入国歴（別紙）"]
[null," Previous stay in Japan"]
[]
[]
[]
[]
[null,"入国年月日",null,null,null,null,null,null,null,"出国年月日",null,null,null,null,null,null,null,"在留資格",null,null,null,null,null,"入国目的"]
[null,"Date of entry",null,null,null,null,null,null,null,"Date of departure",null,null,null,null,null,null,null,"Visa status",null,null,null,null,null,"Purpose of entry"]
[null,null,null,"年",null,"月",null,"日",null,null,null,"年",null,"月",null,"日",null,null,null,null,null,null,null,null,null,null,null,"※若日本出入境次数大于4次，请填写这张表格"]
[null,null,null,"年",null,"月",null,"日",null,null,null,"年",null,"月",null,"日",null,null,null,null,null,null,null,null,null,null,null,"　注意填写时一定要按照“时间倒序”例子：2019年→2018年→2017年"]
[null,null,null,"年",null,"月",null,"日",null,null,null,"年",null,"月",null,"日",null,null,null,null,null,null,null,null,null,null,null," “入境年月日”和“处境年月日” 和护照出入境记录一致"]
[null,null,null,"年",null,"月",null,"日",null,null,null,"年",null,"月",null,"日"]
[null,null,null,"年",null,"月",null,"日",null,null,null,"年",null,"月",null,"日"]
[null,null,null,"年",null,"月",null,"日",null,null,null,"年",null,"月",null,"日"]
[null,null,null,"年",null,"月",null,"日",null,null,null,"年",null,"月",null,"日"]
[null,null,null,"年",null,"月",null,"日",null,null,null,"年",null,"月",null,"日"]
[null,null,null,"年",null,"月",null,"日",null,null,null,"年",null,"月",null,"日"]
[null,null,null,"年",null,"月",null,"日",null,null,null,"年",null,"月",null,"日"]
[null,null,null,"年",null,"月",null,"日",null,null,null,"年",null,"月",null,"日"]
[null,null,null,"年",null,"月",null,"日",null,null,null,"年",null,"月",null,"日"]
[null,null,null,"年",null,"月",null,"日",null,null,null,"年",null,"月",null,"日"]
[null,null,null,"年",null,"月",null,"日",null,null,null,"年",null,"月",null,"日"]
[null,null,null,"年",null,"月",null,"日",null,null,null,"年",null,"月",null,"日"]
[]
[null,null,null,null,null,null,null,null,null,null,null,null,null,null,null,null,null,null,null,null,null,"計",null,null,null,"回"]
[null,null,null,null,null,null,null,null,null,null,null,null,null,null,null,null,null,null,null,null,null,"total",null,null,null,"time(s)"]

{"sheet":"申請人用１","index":4,"n_rows":109,"n_cols":42,"rows_kept":109,"cut":false,"hidden":true,"merged":[[4,0,4,42],[5,0,5,42],[7,1,7,8],[8,1,8,8],[10,2,11,32],[12,2,13,32],[23,4,23,5],[23,7,23,8],[23,36,23,37],[23,39,23,40],[25,4,26,13],[25,23,26,41],[16,40,16,41],[17,32,17,33],[17,36,17,37],[17,40,17,41],[19,6,20,41],[22,4,22,5],[22,7,22,8],[22,15,23,28],[22,36,22,37],[22,39,22,40],[16,6,17,20],[16,28,17,31],[16,32,16,33],[16,34,17,35],[16,36,16,37],[16,38,17,39],[28,8,29,41],[31,8,32,19],[31,28,32,40],[34,8,35,19],[34,28,35,31],[34,32,34,33],[34,34,35,35],[34,36,34,37],[34,38,35,39],[35,32,35,33],[55,11,55,12],[55,15,55,16],[57,7,58,19],[60,9,61,21],[66,4,67,6],[66,16,67,18],[66,19,66,20],[66,21,67,22],[35,36,35,37],[41,30,41,42],[47,2,47,8],[49,28,49,42],[54,7,55,10],[54,11,54,12],[54,13,55,14],[54,15,54,16],[54,17,55,18],[54,28,55,41],[66,39,67,40],[67,19,67,20],[67,23,67,24],[67,33,67,34],[67,37,67,38],[66,23,66,24],[66,25,67,26],[66,28,66,29],[66,30,67,32],[66,33,66,34],[66,35,67,36],[72,18,73,20],[72,36,73,38],[77,9,78,36],[82,16,83,18],[82,30,83,32],[82,33,82,34],[82,35,83,36],[82,37,82,38],[66,37,66,38],[82,39,83,40],[83,33,83,34],[83,37,83,38],[89,3,89,23],[90,0,91,3],[90,4,91,12],[90,13,91,16],[90,17,91,20],[90,21,91,24],[90,25,91,33],[90,34,90,42],[91,34,91,42],[92,0,93,3],[92,4,93,12],[92,13,93,16],[92,17,93,20],[92,21,93,24],[92,25,93,33],[92,34,92,42],[93,34,93,42],[94,34,95,42],[95,21,95,24],[96,0,97,3],[96,4,97,12],[96,13,97,16],[96,17,97,20],[96,21,96,24],[96,25,97,33],[96,34,97,42],[97,21,97,24],[94,0,95,3],[94,4,95,12],[94,13,95,16],[94,17,95,20],[94,21,94,24],[94,25,95,33],[102,2,104,42],[98,34,99,42],[99,21,99,24],[100,0,101,3],[100,4,101,12],[100,13,101,16],[100,17,101,20],[100,21,100,24],[100,25,101,33],[100,34,101,42],[101,21,101,24],[98,0,99,3],[98,4,99,12],[98,13,99,16],[98,17,99,20],[98,21,98,24],[98,25,99,33]]}
["別記第六号の三様式（第六条の二関係）"]
[null,"申請人等作成用 １",null,null,null,null,null,null,null,null,null,null,null,null,null,null,null,null,null,null,null,null,null,null,null,null,null,null,null,null,null,"日本国政府法務省"]
[null,"    For applicant, part 1",null,null,null,null,null,null,null,null,null,null,null,null,null,null,null,null,null,null,null,null,null,null,null,null,null,null,null,null,null,"Ministry of Justice, Government of Japan"]
[]
["在　留　資　格　認　定　証　明　書　交　付　申　請　書"]
["APPLICATION FOR CERTIFICATE OF ELIGIBILITY"]
[]
[null,"法務大臣殿"]
[null," To the Minister of Justice"]
[]
[null,null,"　出入国管理及び難民認定法第７条の２の規定に基づき，次のとおり同法第７条第１項第２号に\n掲げる条件に適合している旨の証明書の交付を申請します。"]
[]
[null,null,"Pursuant to the provisions of Article 7-2 of the Immigration Control and Refugee Recognition Act,  I hereby apply for\nthe certificate showing eligibility for the conditions provided for in 7, Paragraph 1, Item 2 of the said Act."]
[]
[null,null,null,null,null,null,null,null," ",null,null,null,null,null,null,null," ",null,"　"]
[null,null,null,null,null,null,null,"  "]
["1　国　籍・地　域",null,null,null,null,null,{"$f":"IF(申請者情報!E4=\"\",\"\",申請者情報!E4)","v":""},null,null,null,null,null,null,null,null,null,null,null,null,null,null,null,null,"2　生年月日",null,null,null,null,{"$f":"IF(申請者情報!T3=\"\",\"\",申請者情報!T3)","v":""},null,null,null,"年",null,{"$f":"IF(申請者情報!V3=\"\",\"\",申請者情報!V3)","v":""},null,"月",null,{"$f":"IF(申請者情報!X3=\"\",\"\",申請者情報!X3)","v":""},null,"日"]
[null,"Nationality/Region",null,null,null,null,null,null,null,null,null,null,null,null,null,null,null,null,null,null,null,null,null,null,"Date of birth",null,null,null,null,null,null,null,"Year",null,null,null,"Month",null,null,null,"Day"]
[]
["3　氏　名",null,null,null,null,null,{"$f":"IF(申請者情報!K3=\"\",\"\",申請者情報!K3)","v":""}]
[null,"Name "]
[null,null,null,null,null,null,null,"Family name",null,null,null,null,null,null,null,null,null,null,null,"Given name"]
["4　性　別",null,null,null,"男",null,"・","女",null,null,"5　出生地",null,null,null,null,{"$f":"IF(申請者情報!K4=\"\",\"\",申請者情報!K4)","v":""},null,null,null,null,null,null,null,null,null,null,null,null,null,"6　配偶者の有無",null,null,null,null,null,null,"有",null,"・","無"]
[null,"Sex",null,null,"Male",null,"/","Female",null,null,null,"Place of birth",null,null,null,null,null,null,null,null,null,null,null,null,null,null,null,null,null,null,"Marital status",null,null,null,null,null,"Married",null,"/","Single"]
[]
["7　職　業",null,null,null,{"$f":"IF(申請者情報!T4=\"\",\"\",申請者情報!T4)","v":""},null,null,null,null,null,null,null,null,null,null,"8　本国における居住地",null,null,null,null,null,null,null,{"$f":"IF(申請者情報!E5=申請者情報!Q5,申請者情報!E5,\"現住所：\"&申請者情報!E5&CHAR(10)&\"戸籍住所：\"&申請者情報!Q5)","v":0}]
[null,"Occupation",null,null,null,null,null,null,null,null,null,null,null,null,null,null,"Home town/city"]
[]
["9　日本における連絡先",null,null,null,null,null,null,null,{"$f":"学校情報!D3","v":"東京都新宿区高田馬場1-25-29 ファザーランド高田馬場 ４階"}]
[null,"Address in Japan"]
[]
[null,"電話番号",null,null,null,null,null,null,{"$f":"学校情報!D5","v":"03-6205-9930"},null,null,null,null,null,null,null,null,null,null,null,null,null,"携帯電話番号",null,null,null,null,null,{"$f":"学校情報!D6","v":"080-4297-3280"}]
[null,"Telephone No.",null,null,null,null,null,null,null,null,null,null,null,null,null,null,null,null,null,null,null,null,"Cellular phone No."]
[]
["10　旅券",null,null,null,null,"(1)番　号",null,null,{"$f":"IF(申請者情報!E7=\"\",\"\",申請者情報!E7)","v":""},null,null,null,null,null,null,null,null,null,null,null,null,null,"(2)有効期限",null,null,null,null,null,{"$f":"IF(申請者情報!T7=\"\",\"\",申請者情報!T7)","v":""},null,null,null,"年",null,{"$f":"IF(申請者情報!V7=\"\",\"\",申請者情報!V7)","v":""},null,"月",null,{"$f":"IF(申請者情報!X7=\"\",\"\",申請者情報!X7)","v":""},null,"日"]
[null,"  Passport ",null,null,null,null,"Number",null,null,null,null,null,null,null,null,null,null,null,null,null,null,null,null,"Date of expiration",null,null,null,null,null,null,null,null,"Year",null,null,null,"Month",null,null,null,"Day"]
[]
["11　入国目的 （次のいずれか該当するものを選んでください。）",null,null,null,null,null,null,null,null,null,null,null,null,null,null,null,null,null,null,null,null,"Purpose of entry: check one of the followings"]
[null,"□"," Ｉ 「教授」",null,null,null,null,"□"," Ｉ 「教育」",null,null,null,null,"□"," Ｊ 「芸術」",null,null,null,null,"□"," Ｊ 「文化活動」",null,null,null,null,null,null,null,null,"□","Ｋ 「宗教」",null,null,null,null,null,"□","Ｌ「報道」"]
[null,null,"\"Professor\"",null,null,null,null,null,"\"Instructor\"",null,null,null,null,null,"\"Artist\"",null,null,null,null,null,"\"Cultural Activities\"",null,null,null,null,null,null,null,null,null,"\"Religious Activities\"  ",null,null,null,null,null,null,"\"Journalist\""]
[null,"□ "," Ｌ 「企業内転勤」",null,null,null,null,null,null,"□"," Ｌ 「研究（転勤）」",null,null,null,null,null,null,"□"," M 「経営・管理」",null,null,null,null,null,"□"," Ｎ 「研究」",null,null,null,"□ ","Ｎ 「技術・人文知識・国際業務」"]
[null,null,"\"Intra-company Transferee\"",null,null,null,null,null,null,null,"\"Researcher (Transferee)\"",null,null,null,null,null,null,null,"\"Business Manager”",null,null,null,null,null,null,"\"Researcher\"",null,null,null,null,"\"Engineer / Specialist in Humanities / International Services\" "]
[null,"□","Ｎ 「介護」",null,null,null,null,"□","Ｎ 「技能」",null,null,null,"□ ","Ｎ「特定活動（研究活動等）」",null,null,null,null,null,null,null,null,null,null,null,null,null,null,null,"□ ","Ｎ「特定活動（本邦大学卒業者）」"]
[null,null,"\"Nursing Care\"",null,null,null,null,null,"\"Skilled Labor\"",null,null,null,null,"\"Designated Activities ( Researcher or IT engineer of a designated org)\"",null,null,null,null,null,null,null,null,null,null,null,null,null,null,null,null,"\"Designated Activities (Graduate from a university in Japan)\""]
[null,"□ ","Ｖ「特定技能（1号）」",null,null,null,null,null,null,null,null,"□","Ｖ「特定技能（2号）」",null,null,null,null,null,null,null,"□"," Ｏ 「興行」",null,null,null,null,null,null,"■"," Ｐ 「留学」",null,null,null,null,null,"□","Ｑ 「研修」"]
[null,null,null,"\"Specified Skilled Worker ( i ) \"",null,null,null,null,null,null,null,null,null,"\"Specified Skilled Worker ( ⅱ ) \"",null,null,null,null,null,null,null,"\"Entertainer\"",null,null,null,null,null,null,null,"\"Student\"",null,null,null,null,null,null," \"Trainee\""]
[null,"□","Y 「技能実習（1号）」",null,null,null,null,null,null,null,null,null,"□","Y 「技能実習（2号）」",null,null,null,null,null,null,null,null,null,null,null,null,"□","Y 「技能実習（3号）」",null,null,null,null,null,null,null,null,"□"," Ｒ 「家族滞在」"]
[null,null," \"Technical Intern Training ( i )\" ",null,null,null,null,null,null,null,null,null,null," \"Technical Intern Training ( ⅱ )\" ",null,null,null,null,null,null,null,null,null,null,null,null,null," \"Technical Intern Training ( ⅲ )\" ",null,null,null,null,null,null,null,null,null,"\"Dependent\""]
[null,"□ ","Ｒ 「特定活動（研究活動等家族）」",null,null,null,null,null,null,null,null,null,null,null,null,null,"□","Ｒ「特定活動（EPA家族）」",null,null,null,null,null,null,null,null,null,"□","Ｒ「特定活動（本邦大卒者家族）」"]
[null,null,"\"Designated Activities (Dependent of Researcher or IT engineer of a designated org)\"",null,null,null,null,null,null,null,null,null,null,null,null,null,null,"\"Designated Activities(Dependent of EPA)\"",null,null,null,null,null,null,null,null,null,null,"\"Designated Activities(Dependent of Gradutate from a university in Japan)\""]
[null,"□"," Ｔ 「日本人の配偶者等」",null,null,null,null,null,null,null,null,null,null,"□"," Ｔ「永住者の配偶者等」",null,null,null,null,null,null,null,null,null,null,null,"□","Ｔ「定住者」"]
[null,null,"\"Spouse or Child of Japanese National\"",null,null,null,null,null,null,null,null,null,null,null,"\"Spouse or Child of Permanent Resident\"",null,null,null,null,null,null,null,null,null,null,null,null,"\"Long Term Resident\""]
[null,"□ "," 「高度専門職（1号イ）」",null,null,null,null,null,null,null,null,null,"□ "," 「高度専門職（1号ロ）」",null,null,null,null,null,null,null,null,null,null,"□"," 「高度専門職（1号ハ）」",null,null,null,null,null,null,null,null,null,null,"□","Ｕ 「その他」"]
[null,null,"\"Highly Skilled Professional(i)(a)\"",null,null,null,null,null,null,null,null,null,null,"\"Highly Skilled Professional(i)(b)\"",null,null,null,null,null,null,null,null,null,null,null,"\"Highly Skilled Professional(i)(c)\"",null,null,null,null,null,null,null,null,null,null,null,"Others"]
["12　入国予定年月日",null,null,null,null,null,null,2023,null,null,null,"年",null,10,null,"月",null,1,null,"日",null,null,"13　上陸予定港",null,null,null,null,null," 成田"]
[null,"  Date of entry",null,null,null,null,null,null,null,null,null,"Year",null,null,null,"Month",null,null,null,"Day",null,null,null,"   Port of entry"]
[]
["14　滞在予定期間",null,null,null,null,null,null,"1.6年",null,null,null,null,null,null,null,null,null,null,null,null,null,null,"15　同伴者の有無",null,null,null,null,null,null,null,null,null,"有","・","無"]
[null,"  Intended length of stay",null,null,null,null,null,null,null,null,null,null,null,null,null,null,null,null,null,null,null,null,null,"   Accompanying persons, if any",null,null,null,null,null,null,null,null,"Yes","/","No"]
[]
["16　査証申請予定地",null,null,null,null,null,null,null,null,"在中国日本領事館"]
[null,"  Intended place to apply for visa"]
[]
["17　過去の出入国歴",null,null,null,null,null,null,null,null,null,null,null,"有","・","無"]
[null,"   Past entry into / departure from Japan",null,null,null,null,null,null,null,null,null,null,"Yes","/","No"]
[null,null,"（上記で『有』を選択した場合）　(Fill in the followings when the answer is \"Yes\")"]
[null,null," 回数",null,{"$f":"IF(OR(申請者情報!L25=\"\",申請者情報!L25=\"否\"),IF(OR(申請者情報!F25=\"\",申請者情報!F25=0),\"\",申請者情報!F25),IF(申請者情報!L25=\"是\",出入国歴_別紙!X28,IF(OR(申請者情報!F25=\"\",申請者情報!F25=0),\"\",申請者情報!F25)))","v":""},null,null,"回",null,null,"直近の出入国歴",null,null,null,null,null,{"$f":"IF(OR(申請者情報!L25=\"\",申請者情報!L25=\"否\",申請者情報!L25=\"　\"),申請者情報!C27,出入国歴_別紙!B12)","v":0},null,null,"年",null,{"$f":"IF(OR(申請者情報!L25=\"\",申請者情報!L25=\"否\",申請者情報!L25=\"　\"),申請者情報!E27,出入国歴_別紙!E12)","v":0},null,"月",null,{"$f":"IF(OR(申請者情報!L25=\"\",申請者情報!L25=\"否\",申請者情報!L25=\"　\"),申請者情報!G27,出入国歴_別紙!G12)","v":0},null,"日","から",null,{"$f":"IF(OR(申請者情報!L25=\"\",申請者情報!L25=\"否\",申請者情報!L25=\"　\"),申請者情報!I27,出入国歴_別紙!J12)","v":0},null,null,"年",null,{"$f":"IF(OR(申請者情報!L25=\"\",申請者情報!L25=\"否\",申請者情報!L25=\"　\"),申請者情報!K27,出入国歴_別紙!M12)","v":0},null,"月",null,{"$f":"IF(OR(申請者情報!L25=\"\",申請者情報!L25=\"否\",申請者情報!L25=\"　\"),申請者情報!M27,出入国歴_別紙!O12)","v":0},null,"日"]
[null,null,null,null,null,null,null,"time(s)",null,null,"The latest entry from",null,null,null,null,null,null,null,null,"Year",null,null,null,"Month",null,null,null,"Day      to",null,null,null,null,null,"Year",null,null,null,"Month",null,null,null,"Day"]
[]
["18　過去の在留資格認定証明書交付申請歴",null,null,null,null,null,null,null,null,null,null,null,null,null,null,null,"有","・","無"]
[null,"　Past history of applying for a certificate of eligibility",null,null,null,null,null,null,null,null,null,null,null,null,null,null,"Yes","/","No"]
[]
[null,null,null,null,null,null,"（上記で『有』を選択した場合）",null,null,null,null,null,null,null,null,null,"回数",null,null,null,null,"回",null,"（うち不交付となった回数）",null,null,null,null,null,null,null,null,null,null,null,null,null,null,null,"回"]
[null,null,null,null,null,null," (Fill in the followings when the answer is \"Yes\")",null,null,null,null,null,null,null,null,null,null,null,null,null,null,"time(s)",null,"（Of these applications, the number of times of non-issuance）",null,null,null,null,null,null,null,null,null,null,null,null,null,null,null,"time(s)"]
[]
["19　犯罪を理由とする処分を受けたことの有無 （日本国外におけるものを含む。）※交通違反等による処分を含む。"]
[null,null,"Criminal record (in Japan / overseas)※Including dispositions due to traffic violations, etc."]
[null,null,"有","（具体的内容",null,null,null,null,null," ",null,null,null,null,null,null,null,null,null,null,null,null,null,null,null,null,null,null,null,null,null,null,null,null,null,null,null,"）","・","無"]
[null,null,"Yes"," ( Detail:",null,null,null,null,null,null,null,null,null,null,null,null,null,null,null,null,null,null,null,null,null,null,null,null,null,null,null,null,null,null,null,null,null,") ","/"," No"]
[]
["20　退去強制又は出国命令による出国の有無",null,null,null,null,null,null,null,null,null,null,null,null,null,null,null,null,"有","・","無"]
[null,"   Departure by deportation /departure order",null,null,null,null,null,null,null,null,null,null,null,null,null,null,null,"Yes","/","No"]
[null,null,"（上記で『有』を選択した場合）",null,null,null,null,null,null,null,null,null,null,null,"回数",null,null,null,null,"回",null,"直近の送還歴",null,null,null,null,null,null,null,null,null,null,null,"年",null,null,null,"月",null,null,null,"日"]
[null,null," (Fill in the followings when the answer is \"Yes\")",null,null,null,null,null,null,null,null,null,null,null,null,null,null,null,null,"time(s)",null,"The latest departure by deportation",null,null,null,null,null,null,null,null,null,null,null,"Year",null,null,null,"Month",null,null,null,"Day"]
[]
["21　在日親族（父・母・配偶者・子・兄弟姉妹・祖父母・叔(伯)父・叔(伯)母など）及び同居者"]
["           ","　Family in Japan (father, mother, spouse, children, siblings,grandparents, uncle, aunt or others) and cohabitants"]
[]
[null,null,"有","（「有」の場合は，以下の欄に在日親族及び同居者を記入してください。）　・　無"]
[null,null,"Yes","(If yes, please fill in your family members in Japan and co-residents in the following columns)",null,null,null,null,null,null,null,null,null,null,null,null,null,null,null,null,null,null,null,null,null,"/"," No"]
["続　柄",null,null,null,"氏　名",null,null,null,null,null,null,null,null,"生年月日",null,null,null,"国　籍・地　域",null,null,null,"同居予定の有無",null,null,null,"勤務先名称・通学先名称",null,null,null,null,null,null,null,null,"在留カード番号"]
[null,null,null,null,null,null,null,null,null,null,null,null,null,null,null,null,null,null,null,null,null,null,null,null,null,null,null,null,null,null,null,null,null,null,"特別永住者証明書番号"]
["Relationship",null,null,null,"Name",null,null,null,null,null,null,null,null,"Date of birth",null,null,null,"Nationality/Region",null,null,null,"Intended to reside\nwith applicant or not",null,null,null,"Place of employment/school",null,null,null,null,null,null,null,null,"Residence card number"]
[null,null,null,null,null,null,null,null,null,null,null,null,null,null,null,null,null,null,null,null,null,null,null,null,null,null,null,null,null,null,null,null,null,null,"Special Permanent Resident Certificate number"]
[{"$f":"IF(申請者情報!F38=\"\",\"\",申請者情報!F38)","v":""},null,null,null,{"$f":"IF(申請者情報!C38=\"\",\"\",申請者情報!C38)","v":""},null,null,null,null,null,null,null,null,{"$f":"IF(申請者情報!I38=\"\",\"\",申請者情報!I38&\"/\"&申請者情報!K38&\"/\"&申請者情報!M38)","v":""},null,null,null,{"$f":"IF(申請者情報!O38=\"\",\"\",申請者情報!O38)","v":""},null,null,null,"有・無",null,null,null,{"$f":"IF(申請者情報!S38=\"\",\"\",申請者情報!S38)","v":""},null,null,null,null,null,null,null,null,{"$f":"IF(申請者情報!V38=\"\",\"\",申請者情報!V38)","v":""}]
[null,null,null,null,null,null,null,null,null,null,null,null,null,null,null,null,null,null,null,null,null,"Yes / No"]
[{"$f":"IF(申請者情報!F39=\"\",\"\",申請者情報!F39)","v":""},null,null,null,{"$f":"IF(申請者情報!C39=\"\",\"\",申請者情報!C39)","v":""},null,null,null,null,null,null,null,null,{"$f":"IF(申請者情報!I39=\"\",\"\",申請者情報!I39&\"/\"&申請者情報!K39&\"/\"&申請者情報!M39)","v":""},null,null,null,{"$f":"IF(申請者情報!O39=\"\",\"\",申請者情報!O39)","v":""},null,null,null,"有・無",null,null,null,{"$f":"IF(申請者情報!S39=\"\",\"\",申請者情報!S39)","v":""},null,null,null,null,null,null,null,null,{"$f":"IF(申請者情報!V39=\"\",\"\",申請者情報!V39)","v":""}]
[null,null,null,null,null,null,null,null,null,null,null,null,null,null,null,null,null,null,null,null,null,"Yes / No"]
[null,null,null,null,null,null,null,null,null,null,null,null,null,null,null,null,null,null,null,null,null,"有・無"]
[null,null,null,null,null,null,null,null,null,null,null,null,null,null,null,null,null,null,null,null,null,"Yes / No"]
[null,null,null,null,null,null,null,null,null,null,null,null,null,null,null,null,null,null,null,null,null,"有・無"]
[null,null,null,null,null,null,null,null,null,null,null,null,null,null,null,null,null,null,null,null,null,"Yes / No"]
[null,"※","3について，有効な旅券を所持する場合は，旅券の身分事項ページのとおりに記載してください。\nRegarding item 3, if you possess your valid passport, please fill in your name as shown in the passport.\n21については，記載欄が不足する場合は別紙に記入して添付すること。なお,「研修」，「技能実習」に係る申請の場合は，「在日親族」のみ記載してください。\nRegarding item 21, if there is not enough space in the given columns to write in all of your family in Japan, fill in and attach a separate sheet. \nIn addition, take note that you are only required to fill in your family members in Japan for applications pertaining to “Trainee” or “Technical Intern Training”."]
[]
[]
["（注） 裏面参照の上，申請に必要な書類を作成して下さい。　"]
["Note : Please fill in forms required for application. (See notes on reverse side.)"]
["（注） 申請書に事実に反する記載をしたことが判明した場合には，不利益な扱いを受けることがあります。"]
[" Note :  In case of to be found that you have misrepresented the facts in an application, you will be unfavorably treated in the process."]

{"sheet":"申請人用２","index":5,"n_rows":92,"n_cols":33,"rows_kept":92,"cut":false,"hidden":true,"merged":[[4,6,5,32],[7,5,8,18],[7,24,8,32],[10,21,11,24],[18,25,19,31],[20,7,21,13],[20,14,20,22],[20,23,21,27],[20,29,21,30],[20,31,20,32],[26,0,26,3],[26,4,26,7],[26,8,26,16],[26,17,26,20],[26,21,26,24],[26,25,26,33],[21,15,21,22],[21,31,21,32],[24,1,24,33],[25,0,25,3],[25,4,25,7],[25,8,25,16],[25,17,25,20],[25,21,25,24],[25,25,25,33],[27,19,27,20],[27,21,27,22],[27,23,27,24],[27,25,27,33],[28,0,28,1],[28,2,28,3],[28,4,28,5],[28,6,28,7],[28,17,28,18],[28,19,28,20],[27,0,27,1],[27,2,27,3],[27,4,27,5],[27,6,27,7],[27,8,27,16],[27,17,27,18],[28,21,28,22],[28,23,28,24],[29,25,30,33],[31,0,32,1],[31,2,32,3],[31,4,32,5],[31,6,32,7],[31,8,32,16],[31,17,32,18],[31,19,32,20],[31,21,32,22],[29,0,30,1],[29,2,30,3],[29,4,30,5],[29,6,30,7],[29,8,30,16],[29,17,30,18],[29,19,30,20],[29,21,30,22],[29,23,30,24],[33,23,34,24],[33,25,34,33],[37,1,38,32],[39,31,39,32],[41,4,42,17],[41,21,42,32],[31,23,32,24],[31,25,32,33],[33,0,34,1],[33,2,34,3],[33,4,34,5],[33,6,34,7],[33,8,34,16],[33,17,34,18],[33,19,34,20],[33,21,34,22],[48,22,48,23],[48,24,49,25],[48,26,48,27],[49,10,49,11],[49,14,49,15],[49,16,49,17],[49,22,49,23],[49,26,49,27],[45,6,46,19],[48,6,49,9],[48,10,48,11],[48,12,49,13],[48,14,48,15],[48,16,48,17],[48,18,49,21],[64,24,65,25],[64,26,64,27],[65,10,65,11],[65,14,65,15],[65,16,65,17],[65,22,65,23],[65,26,65,27],[51,5,52,32],[54,5,55,32],[61,6,62,19],[64,6,65,9],[64,10,64,11],[64,12,65,13],[64,14,64,15],[64,16,64,17],[64,18,65,21],[64,22,64,23],[82,6,83,20],[84,6,85,20],[84,26,85,32],[87,11,88,20],[87,26,88,32],[90,7,91,13],[70,6,71,13],[70,26,71,31],[73,9,74,16],[73,26,74,31],[76,5,77,12],[81,2,81,33]]}
["申請人等作成用 ２　　Ｐ　（「留学」）",null,null,null,null,null,null,null,null,null,null,null,null,null,null,null,null,null,null,null,null,null,null,null,null,"在留資格認定証明書用"]
["For applicant, part 2  P (\"Student\")                                                   ",null,null,null,null,null,null,null,null,null,null,null,null,null,null,null,null,null,null,null,null,null,null,null,null,"    For certificate of eligibility"]
[]
["22　通学先",null,null,null,"Place of study"]
[null,"(1)名　称",null,null,null,null,{"$f":"学校情報!D4","v":"行知学園日本語学校高田馬場校"}]
[null,null,"Name of school"]
[]
[null,"(2)所在地",null,null,null,{"$f":"学校情報!D3","v":"東京都新宿区高田馬場1-25-29 ファザーランド高田馬場 ４階"},null,null,null,null,null,null,null,null,null,null,null,null,null,"(3)電話番号",null,null,null,null,{"$f":"学校情報!D5","v":"03-6205-9930"}]
[null,null,"Address",null,null,null,null,null,null,null,null,null,null,null,null,null,null,null,null,null,"Telephone No."]
[]
["23　修学年数 （小学校～最終学歴）",null,null,null,null,null,null,null,null,null,null,null,null,null,null,null,null,null,null,null,null,{"$f":"IF(OR(申請者情報!V16=\"\",申請者情報!V16=\"未選択\"),\"\",IF(申請者情報!X16>1,申請者情報!V16+1,申請者情報!V16))","v":""},null,null,null,"年"]
[null,"   Total period of education (from elementary school to last institution of education)",null,null,null,null,null,null,null,null,null,null,null,null,null,null,null,null,null,null,null,null,null,null,null,"Years"]
[]
["24　最終学歴 （又は在学中の学校）",null,null,null,null,null,null,null,null,null,null,null,"Education (last school or institution) or present school"]
[null,"(1)在籍状況",null,null,null,null,null,"□","卒業",null,null,null,"□","在学中",null,null,null,"□","休学中",null,null,null,null,"□","中退"]
[null,null,"Registered enrollment",null,null,null,null,null,"Graduated",null,null,null,null,"In school",null,null,null,null,"Temporary absence",null,null,null,null,null,"Withdrawal"]
[null,null,"□","大学院 （博士）",null,null,null,null,null,"□","大学院 （修士）",null,null,null,null,null,"□","大学",null,null,null,"□","短期大学",null,null,null,null,"□","専門学校"]
[null,null,null,"Doctor",null,null,null,null,null,null,"Master",null,null,null,null,null,null,"Bachelor",null,null,null,null,"Junior college",null,null,null,null,null,"College of technology"]
[null,null,"□","高等学校",null,null,null,null,null,"□","中学校",null,null,null,null,"□","小学校",null,null,null,null,"□","その他 （",null,null,null,null,null,null,null,null,null,"）"]
[null,null,null,"Senior high school",null,null,null,null,null,null,"Junior high school",null,null,null,null,null,"Elementary school",null,null,null,null,null,"Others"]
[null,"(2)学校名",null,null,null,null,null,{"$f":"IFERROR(INDIRECT(\"'\"&\"申請者情報\"&\"'\"&\"!D\"&IFERROR(MATCH(\"■\",申請者情報!C1:'申請者情報'!C15,0),\"未選択\")),\"未選択\")","v":"未選択"},null,null,null,null,null,null,"(3)卒業又は卒業見込み年月",null,null,null,null,null,null,null,null,{"$f":"IFERROR(INDIRECT(\"'\"&\"申請者情報\"&\"'\"&\"!V\"&IFERROR(MATCH(\"■\",申請者情報!C1:'申請者情報'!C15,0),\"未選択\")),\"未選択\")","v":"未選択"},null,null,null,null,"年",{"$f":"IFERROR(INDIRECT(\"'\"&\"申請者情報\"&\"'\"&\"!X\"&IFERROR(MATCH(\"■\",申請者情報!C1:'申請者情報'!C15,0),\"未選択\")),\"未選択\")","v":"未選択"},null,"月"]
[null,null,"Name of the school",null,null,null,null,null,null,null,null,null,null,null,null,"Date of graduation or expected graduation",null,null,null,null,null,null,null,null,null,null,null,null,"Year",null,null,"Month"]
[]
["25　経歴（直近５年の職歴及び学歴（高等学校卒業以降のものに限る）を記入）"]
[null,"  Personal history(Work experience and educational background for the last 5 years (limited to those after graduating from senior high school))"]
["始期",null,null,null,"終期",null,null,null,null,null,null,null,null,null,null,null,null,"始期",null,null,null,"終期"]
["Start",null,null,null,"Finish",null,null,null,"経歴",null,null,null,null,null,null,null,null,"Start",null,null,null,"Finish",null,null,null,"経歴"]
["年",null,"月",null,"年",null,"月",null,"Personal history",null,null,null,null,null,null,null,null,"年",null,"月",null,"年",null,"月",null,"Personal history"]
["Year",null,"Month",null,"Year",null,"Month",null,null,null,null,null,null,null,null,null,null,"Year",null,"Month",null,"Year",null,"Month"]
[{"$f":"IFERROR(INDIRECT(\"'\"&\"申請者情報\"&\"'\"&\"!R\"&IFERROR(MATCH(\"■\",申請者情報!C1:'申請者情報'!C15,0),\"未選択\")),\"未選択\")","v":"未選択"},null,{"$f":"IFERROR(INDIRECT(\"'\"&\"申請者情報\"&\"'\"&\"!T\"&IFERROR(MATCH(\"■\",申請者情報!C1:'申請者情報'!C15,0),\"未選択\")),\"未選択\")","v":"未選択"},null,{"$f":"IFERROR(INDIRECT(\"'\"&\"申請者情報\"&\"'\"&\"!V\"&IFERROR(MATCH(\"■\",申請者情報!C1:'申請者情報'!C15,0),\"未選択\")),\"未選択\")","v":"未選択"},null,{"$f":"IFERROR(INDIRECT(\"'\"&\"申請者情報\"&\"'\"&\"!X\"&IFERROR(MATCH(\"■\",申請者情報!C1:'申請者情報'!C15,0),\"未選択\")),\"未選択\")","v":"未選択"},null,{"$f":"IFERROR(INDIRECT(\"'\"&\"申請者情報\"&\"'\"&\"!D\"&IFERROR(MATCH(\"■\",申請者情報!C1:'申請者情報'!C15,0),\"未選択\")),\"未選択\")","v":"未選択"}]
[]
[]
[]
[]
[]
[]
["26　日本語能力 （専修学校又は各種学校において日本語教育以外の教育を受ける場合に記入）"]
[null,"  Japanese language ability (Fill in the followings when the applicant plans to study at advanced vocational school or vocational school\n  (except Japanese language))"]
[]
[null,"□","試験による証明",null,null,null,null,null,"Proof based on a Japanese language test"]
[null,"（１）試験名",null,null,null,"Name of the test",null,null,null,null,null,null,null,null,null,null,null,null,null,"（２）級又は点数",null,null,null,null,null,"Attained level or score"]
[null,null,null,null,{"$f":"IF(申請者情報!L17=\"\",\"\",申請者情報!L17)","v":""},null,null,null,null,null,null,null,null,null,null,null,null,null,null,null,null,{"$f":"IF(申請者情報!T17=\"\",\"\",申請者情報!T17)","v":""}]
[]
[]
[null,"□","日本語教育を受けた教育機関及び期間",null,null,null,null,null,null,null,null,null,null,null,null,"Organization and period to have received Japanese language education"]
[null,null,"機関名",null,null,null,{"$f":"IF(申請者情報!C19=\"\",\"\",申請者情報!C19)","v":""}]
[null,null,"Organization"]
[]
[null,null,"期間：",null,null,null,{"$f":"IF(申請者情報!R19=\"\",\"\",申請者情報!R19)","v":""},null,null,null,"年",null,{"$f":"IF(申請者情報!T19=\"\",\"\",申請者情報!T19)","v":""},null,"月",null,"から",null,{"$f":"IF(申請者情報!V19=\"\",\"\",申請者情報!V19)","v":""},null,null,null,"年",null,{"$f":"IF(申請者情報!X19=\"\",\"\",申請者情報!X19)","v":""},null,"月",null,"まで"]
[null,null,"Period",null,"from",null,null,null,null,null,"Year",null,null,null,"Month",null,"to",null,null,null,null,null,"Year",null,null,null,"Month"]
[]
[null,"□","その他"]
[null,null,"Others"]
[]
[]
[]
[]
["27　日本語学習歴 （高等学校において教育を受ける場合に記入）"]
[null,"  Japanese education history (Fill in the followings when the applicant plans to study in high school)"]
[null," 日本語の教育又は日本語による教育を受けた教育機関及び期間"]
[null,"  Organization and period to have received Japanese language education / received education by Japanese language"]
[null,null,"機関名"]
[null,null,"Organization "]
[]
[null,null,"期間：",null,null,null,null,null,null,null,"年",null,null,null,"月",null,"から",null,null,null,null,null,"年",null,null,null,"月",null,"まで"]
[null,null,"Period",null,"from",null,null,null,null,null,"Year",null,null,null,"Month",null,"to",null,null,null,null,null,"Year",null,null,null,"Month"]
[]
["28　滞在費の支弁方法等（生活費，学費及び家賃について記入すること。）※複数選択可"]
[null,"Method of support to pay for expenses while in Japan(fill in with regard to living expenses, tuition and rent) * multiple answers possible"]
[null,"(1)支弁方法及び月平均支弁額",null,null,null,null,null,null,null,null,null,null,"Method of support and an amount of support per month (average)"]
[null,"□","本人負担",null,null,null,null,null,null,null,null,null,null,null,"円",null,null,null,"■","在外経費支弁者負担",null,null,null,null,null,null,"月100,000",null,null,null,null,null,"円"]
[null,null,"Self",null,null,null,null,null,null,null,null,null,null,null,"Yen",null,null,null,null,"Supporter living abroad",null,null,null,null,null,null,null,null,null,null,null,null,"Yen"]
[]
[null,"□","在日経費支弁者負担",null,null,null,null,null,null,null,null,null,null,null,null,null,null,"円",null,null,null,"□","奨学金",null,null,null,null,null,null,null,null,null,"円"]
[null,null,"Supporter in Japan",null,null,null,null,null,null,null,null,null,null,null,null,null,null,"Yen",null,null,null,null,"Scholarship",null,null,null,null,null,null,null,null,null,"Yen"]
[]
[null,"□","その他",null,null,null,null,null,null,null,null,null,null,"円"]
[null,null,"Others",null,null,null,null,null,null,null,null,null,null,"Yen"]
[]
[]
[null,"(2)経費支弁者（複数人いる場合は全てについて記入すること。）※任意様式の別紙可"]
[null,null,"Supporter(If there is more than one, give information on all of the supporters )*another paper may be attached, which does not have to use a prescribed format."]
[null,null,"①氏　名",null,null,null,{"$f":"IF(申請者情報!F44=\"\",\"\",申請者情報!F44)","v":""}]
[null,null,null,"Name"]
[null,null,"②住　所",null,null,null,{"$f":"IF(AND(申請者情報!F45=\"\",申請者情報!R45=\"\"),\"\",IF(申請者情報!F45=申請者情報!R45,申請者情報!F45,\"現住所：\"&申請者情報!F45&CHAR(10)&\"戸籍住所：\"&申請者情報!R45))","v":""},null,null,null,null,null,null,null,null,null,null,null,null,null,null,null,"電話番号",null,null,null,{"$f":"IF(申請者情報!R44=\"\",\"\",申請者情報!R44)","v":""}]
[null,null,null,"Address",null,null,null,null,null,null,null,null,null,null,null,null,null,null,null,null,null,null,"Telephone No."]
[]
[null,null,"③職業 （勤務先の名称）",null,null,null,null,null,null,null,null,{"$f":"IF(申請者情報!F46=\"\",\"\",申請者情報!F46&CHAR(10)&\"（\"&申請者情報!R46&\"）\")","v":""},null,null,null,null,null,null,null,null,null,null,"電話番号",null,null,null,{"$f":"IF(申請者情報!L46=\"\",\"\",申請者情報!L46)","v":""}]
[null,null,null,"Occupation (place of employment)",null,null,null,null,null,null,null,null,null,null,null,null,null,null,null,null,null,null,"Telephone No."]
[]
[null,null,"④年　収",null,null,null,null,{"$f":"IF(申請者情報!R47=\"\",\"\",DOLLAR(TEXT(申請者情報!R47,\"#,##0\")*申請者情報!Z50)&CHAR(10)&\"（１人民元=\"&申請者情報!Z50&\"円）\")","v":""},null,null,null,null,null,null,"円"]
[null,null,null,"Annual income",null,null,null,null,null,null,null,null,null,null,"Yen"]

{"sheet":"申請人用３","index":6,"n_rows":77,"n_cols":33,"rows_kept":77,"cut":false,"hidden":true,"merged":[[15,22,16,27],[19,2,19,33],[24,3,24,13],[24,14,25,20],[24,26,25,31],[25,3,26,13],[59,1,59,16],[33,16,34,31],[38,5,39,15],[38,26,39,32],[41,5,42,32],[44,6,45,15],[44,23,45,32],[50,5,51,15],[50,26,51,32],[53,5,54,32],[56,6,57,15],[56,23,57,32],[77,2,78,20],[77,22,78,32],[65,0,65,2],[65,3,65,33],[67,0,67,2],[67,3,68,33],[73,4,74,11],[73,17,74,32]]}
["申請人等作成用 ３　　Ｐ　（「留学」）",null,null,null,null,null,null,null,null,null,null,null,null,null,null,null,null,null,null,null,null,null,null,null,null,"在留資格認定証明書用"]
["For applicant, part 3  P (\"Student\")  ",null,null,null,null,null,null,null,null,null,null,null,null,null,null,null,null,null,null,null,null,null,null,null,null,"    For certificate of eligibility"]
[]
[null,"(3)申請人との関係 （上記(1)で在外経費支弁者負担又は在日経費支弁者負担を選択した場合に記入）"]
[null,null,"Relationship with the applicant (Check one of the followings when your answer to the question 27(1) is supporter living abroad or Japan)"]
[]
[null,null,"□","夫",null,"□","妻",null,"□","父",null,"□","母",null,"□","祖父",null,null,"□","祖母",null,null,"□","養父",null,null,"□","養母"]
[null,null,null,"Husband",null,null,"Wife",null,null,"Father",null,null,"Mother",null,null,"Grandfather",null,null,null,"Grandmother",null,null,null,"Foster father",null,null,null,"Foster mother"]
[]
[null,null,"□","兄弟姉妹",null,null,null,null,"□","叔父 （伯父）・叔母（伯母）",null,null,null,null,null,null,null,null,"□","受入教育機関",null,null,null,null,null,null,"□","友人・知人"]
[null,null,null,"Brother / Sister",null,null,null,null,null,"Uncle / Aunt",null,null,null,null,null,null,null,null,null,"Educational institution",null,null,null,null,null,null,null,"Friend / Acquaintance"]
[]
[null,null,"□","友人・知人の親族",null,null,null,null,null,null,null,"□","取引関係者・現地企業等職員"]
[null,null,null,"Relative of friend / acquaintance",null,null,null,null,null,null,null,null,"Business connection / Personnel of local enterprise"]
[]
[null,null,"□","取引関係者・現地企業等職員の親族",null,null,null,null,null,null,null,null,null,null,null,null,null,null,"□","その他 （",null,null,null,null,null,null,null,null,"）"]
[null,null,null,"Relative of business connection / personnel of local enterprise",null,null,null,null,null,null,null,null,null,null,null,null,null,null,null,"Others"]
[]
[null,"(4)奨学金支給機関 （上記(1)で奨学金を選択した場合に記入）※複数選択可"]
[null,null,"Organization which provide scholarship (Check one of the following when the answer to the question 27(1) is scholarship) * multiple answers possible"]
[]
[null,null,"□","外国政府",null,null,null,null,"□","日本国政府",null,null,null,null,null,"□","地方公共団体"]
[null,null,null,"Foreign government",null,null,null,null,null,"Japanese government",null,null,null,null,null,null,"Local government"]
[]
[null,null,"□","公益社団法人又は公益財団法人 （",null,null,null,null,null,null,null,null,null,null,null,null,null,null,null,null,null,"）","□","その他 （",null,null,null,null,null,null,null,null,"）"]
[null,null,null,"Public interest incorporated association /\nPublic interest incorporated foundation",null,null,null,null,null,null,null,null,null,null,null,null,null,null,null,null,null,null,null,"Others"]
[]
[]
["29　卒業後の予定",null,null,null,null,null,null,"Plans after graduation"]
[]
[null,"□","帰　国",null,null,null,null,null,null,null,null,null,"■","日本での進学"]
[null,null,"Return to home country",null,null,null,null,null,null,null,null,null,null," Enter school of higher education in Japan"]
[]
[null,"□","日本での就職",null,null,null,null,null,null,null,null,null,"□","その他 （",null,null,null,null,null,null,null,null,null,null,null,null,null,null,null,null,null,null,"）"]
[null,null,"Find work in Japan",null,null,null,null,null,null,null,null,null,null," Others"]
["30　本邦における申請人の監護人（通学先が中学校又は小学校の場合に記入）"]
[null,"   Actual guardian in Japan　( Fill in the following if the applicant is to study at a junior high school or elementary school )"]
[]
[null,"(1)氏　名",null,null,null,null,null,null,null,null,null,null,null,null,null,null,null,"(2)本人との関係"]
[null,null,"Name",null,null,null,null,null,null,null,null,null,null,null,null,null,null,null,"Relationship with the applicant"]
[]
[null,"(3)住　所"]
[null,null,"Address"]
[]
[null,null,"電話番号",null,null,null,null,null,null,null,null,null,null,null,null,null,null,null,"携帯電話番号"]
[null,null,"Telephone No.",null,null,null,null,null,null,null,null,null,null,null,null,null,null,null,"Cellular Phone No."]
[]
["31　申請人，法定代理人，法第７条の２第２項に規定する代理人"]
[null,"   Applicant, legal representative or the authorized representative, prescribed in Paragraph 2 of Article 7-2."]
[]
[null,"(1)氏　名",null,null,null,{"$f":"学校情報!D9","v":"谷井　源"},null,null,null,null,null,null,null,null,null,null,null,"(2)本人との関係",null,null,null,null,null,null,null,null,{"$f":"学校情報!D10","v":"受入機関職員"}]
[null,null,"Name",null,null,null,null,null,null,null,null,null,null,null,null,null,null,null,"Relationship with the applicant"]
[]
[null,"(3)住　所",null,null,null,{"$f":"学校情報!D3","v":"東京都新宿区高田馬場1-25-29 ファザーランド高田馬場 ４階"}]
[null,null,"Address"]
[]
[null,null,"電話番号",null,null,null,{"$f":"学校情報!D12","v":"03-6205-9930"},null,null,null,null,null,null,null,null,null,null,null,"携帯電話番号",null,null,null,null,{"$f":"学校情報!D13","v":"080-4297-3280"}]
[null,null,"Telephone No.",null,null,null,null,null,null,null,null,null,null,null,null,null,null,null,"Cellular Phone No."]
[]
[null,"以上の記載内容は事実と相違ありません。",null,null,null,null,null,null,null,null,null,null,null,null,null,null,null,null,"I hereby declare that the statement given above is true and correct. "]
[null,"申請人（代理人）の署名／申請書作成年月日",null,null,null,null,null,null,null,null,null,null,null,null,null,null,null,null,"Signature of the applicant (representative) / Date of filling in this form "]
[]
[null,null,null,null,null,null,null,null,null,null,null,null,null,null,null,null,null,null,null,null,null,null,null,null,"年",null,null,null,"月",null,null,null,"日"]
[null,null,null,null,null,null,null,null,null,null,null,null,null,null,null,null,null,null,null,null,null,null,null,null,"Year",null,null,null,"Month",null,null,null,"Day"]
[]
["注意",null,null,"申請書作成後申請までに記載内容に変更が生じた場合，申請人（代理人）が変更箇所を訂正し，\n署名すること。"]
[null,null,null,"申請書作成年月日は申請人（代理人）が自署すること。"]
["Attention",null,null,"In cases where descriptions have changed after filling in this application form up until submission of this application, the applicant (representative) must correct the part concerned and sign their name."]
[]
[null,null,null,"The date of preparation of the application form must be written by the applicant (representative)."]
[]
["※　取次者",null,null,null,"Agent or other authorized person"]
[]
[null,"(1)氏　名",null,null,null,null,null,null,null,null,null,null,null,"(2)住　所"]
[null,null,"Name",null,null,null,null,null,null,null,null,null,null,null,"Address"]
[]
[null,"(3)所属機関等",null,null,null,null,null,"Organization to which the agent belongs",null,null,null,null,null,null,null,null,null,null,null,null,null,null,"電話番号",null,null,null,"Telephone No."]

{"sheet":"所属機関用１","index":7,"n_rows":71,"n_cols":34,"rows_kept":71,"cut":false,"hidden":true,"merged":[[17,2,17,5],[3,11,4,33],[7,6,8,33],[10,6,11,33],[13,6,14,16],[16,6,17,33],[38,26,39,31],[19,20,20,20],[19,21,20,21],[19,22,20,22],[19,23,20,23],[19,24,20,24],[19,25,20,25],[19,26,20,26],[20,2,20,13],[29,30,30,33],[32,27,32,29],[33,27,33,29],[19,14,20,14],[19,15,20,15],[19,16,20,16],[19,17,20,17],[19,18,20,18],[19,19,20,19],[69,27,70,32],[40,8,41,11],[40,12,40,13],[40,14,41,15],[40,16,40,17],[40,18,41,19],[41,12,41,13],[41,16,41,17],[43,13,44,22],[50,2,51,12],[50,15,51,24],[55,2,56,12],[55,15,56,23]]}
["所属機関等作成用 １　　　Ｐ　（「留学」）",null,null,null,null,null,null,null,null,null,null,null,null,null,null,null,null,null,null,null,null,null,null,null,null,"在留資格認定証明書用"]
["For organization, part 1  P (\"Student\")",null,null,null,null,null,null,null,null,null,null,null,null,null,null,null,null,null,null,null,null,null,null,null,null,"    For certificate of eligibility"]
[]
["1　入学する外国人の氏名",null,null,null,null,null,null,null,null,null,null,{"$f":"申請者情報!E3&\"　　\"&申請者情報!K3","v":"　　"}]
[null,"Name of the foreigner to enter school"]
[]
["2　通学先",null,null,null,"Place of Study"]
[null,"(1)学校名",null,null,null,null,{"$f":"学校情報!D4","v":"行知学園日本語学校高田馬場校"}]
[null,null,"Name of School"]
[]
[null,"(2)所在地",null,null,null,null,{"$f":"学校情報!D3","v":"東京都新宿区高田馬場1-25-29 ファザーランド高田馬場 ４階"}]
[null,null,"Address"]
[]
[null,null,"電話番号",null,null,null,{"$f":"学校情報!D5","v":"03-6205-9930"}]
[null,null,"Telephone No."]
[]
[null,"(3)法人名",null,null,null,null,{"$f":"学校情報!D23","v":"行知学園株式会社"}]
[null,null,"Corporation name"]
[]
[null,"(4)法人番号（13桁）",null,null,null,null,null,null,null,null,null,null,null,null,"4","0","1","1","1","0","1","0","6","8","4","5","0"]
[null,null,"Corporation no. (combination of 13 numbers and letters)"]
[]
[null,"(5)授業形態",null,null,null,null,"Type of class"]
[null,null,"■","昼間制",null,null,null,null,"□","昼夜間制",null,null,null,null,"□","夜間制"]
[null,null,null,"Day classes",null,null,null,null,null,"Day-Evening classes",null,null,null,null,null,"Evening classes"]
[null,null,"□","サテライト制 （双方向通信による遠隔授業を受ける場合に記入）"]
[null,null,null,"Satellite program (fill in this box when attending remote classes that use two-way communication)"]
[null,null,"□","通信制 （単位の一部をビデオ又はインターネット等による教育により取得できる場合を含む。）"]
[null,null,null,"Correspondence course (including cases receiving credits for education via video or internet)"]
[null,"(6)生活指導担当者名 （通学先が専修学校，各種学校，中学校又は小学校の場合に記入）",null,null,null,null,null,null,null,null,null,null,null,null,null,null,null,null,null,null,null,null,null,null,null,null,null,null,null,null,{"$f":"学校情報!D16","v":"李　明"}]
[null,null,"Name of the resident adviser in Japan (in case that the place of study is an advanced vocational school,vocational school,"]
[null,null,"junior high school or elementary school)"]
[null,"(7)学生交換計画の有無及び当該計画の策定主体 ",null,null,null,null,null,null,null,null,null,null,null,null,null,null,null,null,null,null,null,null,null,null,null,null,null,"有・無"]
[null,null,"（通学先が高等学校，中学校又は小学校の場合に記入）",null,null,null,null,null,null,null,null,null,null,null,null,null,null,null,null,null,null,null,null,null,null,null,null,"Yes / No"]
[null,null,"Is the applicant participating in a student exchange program? Which organization is in charge of that program?"]
[null,null," (when the place of study is senior high school,junior high school or elementary school)"]
[null,null,"□","国又は地方公共団体の機関",null,null,null,null,null,null,null,null,null,null,"□","独立行政法人",null,null,null,null,null,null,"□","国立大学法人",null,null,null,null,null,null,"□","学校法人"]
[null,null,null,"National or local government",null,null,null,null,null,null,null,null,null,null,null,"Incorporated administrative agency",null,null,null,null,null,null,null,"National university corporation",null,null,null,null,null,null,null,"Educational foundation"]
[null,null,"□","公益社団法人又は公益財団法人",null,null,null,null,null,null,null,null,null,null,null,null,null,null,null,null,null,null,"□","その他 （",null,null,null,null,null,null,null,null,"）"]
[null,null,null,"Public interest incorporated association or public interest incorporated foundation",null,null,null,null,null,null,null,null,null,null,null,null,null,null,null,null,null,null,null,"Others"]
["3　入学年月日",null,null,null,null,null,null,null,{"$f":"IF(申請人用１!H55=\"\",\"\",申請人用１!H55)","v":2023},null,null,null,"年",null,{"$f":"IF(申請人用１!N55=\"\",\"\",申請人用１!N55)","v":10},null,"月",null,{"$f":"IF(申請人用１!R55=\"\",\"\",申請人用１!R55)","v":1},null,"日"]
[null,"Date of entrance",null,null,null,null,null,null,null,null,null,null,"Year",null,null,null,"  Month",null,null,null,"Day"]
[]
["4　週間授業時間（予定を含む。）",null,null,null,null,null,null,null,null,null,null,null,null,20,null,null,null,null,null,null,null,null,null,"時間"]
[null,"Lesson hours per week(including scheduled lessons)",null,null,null,null,null,null,null,null,null,null,null,null,null,null,null,null,null,null,null,null,null,"hours"]
[]
["5　在籍区分",null,null,null,null,"Registration"]
[null,"□","大学院 （博士）",null,null,null,null,null,null,null,null,null,"□","大学院 （修士）"]
[null,null,"Doctor",null,null,null,null,null,null,null,null,null,null,"Master"]
[null,"□","大学院 （研究生/専ら聴講によらない）",null,null,null,null,null,null,null,null,null,null,null,"□","大学院 （研究生/専ら聴講による）",null,null,null,null,null,null,null,null,null,null,"□","大学 （学部生）"]
[null,null,"Graduate school (Research student / not study through auditing courses exclusively)",null,null,null,null,null,null,null,null,null,null,null,null,"Graduate school (Research student / study through auditing courses exclusively)",null,null,null,null,null,null,null,null,null,null,null,"Undergraduate student"]
[]
[null,"□","大学 （聴講生）",null,null,null,null,null,null,null,null,null,null,null,"□","大学 （科目等履修生）",null,null,null,null,null,null,null,null,null,"□","大学 （別科生）"]
[null,null,"University(Auditor)",null,null,null,null,null,null,null,null,null,null,null,null,"University (Elective course student)",null,null,null,null,null,null,null,null,null,null,"University (Japanese language course student)"]
[null,"□","大学 （研究生/専ら聴講によらない）",null,null,null,null,null,null,null,null,null,null,null,"□","大学 （研究生/専ら聴講による）",null,null,null,null,null,null,null,null,null,"□","短期大学 （学科生）"]
[null,null,"University (Research student/ not study through auditing courses exclusively)",null,null,null,null,null,null,null,null,null,null,null,null,"University (Research student / study through auditing courses exclusively))",null,null,null,null,null,null,null,null,null,null,"Junior college (Regular student)"]
[]
[null,"□","短期大学 （聴講生）",null,null,null,null,null,null,null,null,null,null,null,"□","短期大学 （科目等履修生）",null,null,null,null,null,null,null,null,null,"□","短期大学 （別科生）"]
[null,null,"Junior college (Auditor)",null,null,null,null,null,null,null,null,null,null,null,null,"Junior college (Elective course student)",null,null,null,null,null,null,null,null,null,"Junior college (Japanese language course student)"]
[null,"□","高等専門学校",null,null,null,null,null,null,null,null,null,"□","専修学校 （専門課程）",null,null,null,null,null,null,null,null,null,null,null,"□","専修学校 （高等課程）"]
[null,null,"Technical school",null,null,null,null,null,null,null,null,null,null,"Advanced vocational school (Specialized course)",null,null,null,null,null,null,null,null,null,null,null,null,"Advanced vocational school (Higher course)"]
[null,"□","専修学校 （一般課程）",null,null,null,null,null,null,null,null,null,"□","各種学校"]
[null,null,"Advanced vocational school (General course)",null,null,null,null,null,null,null,null,null,null,"Miscellaneous school"]
[null,"□","日本語教育機関 （専修学校専門課程）",null,null,null,null,null,null,null,null,null,null,null,null,null,null,null,null,null,null,"□","日本語教育機関 （専修学校一般課程）"]
[null,null,"Japanese language institution (Advanced vocational school of specialized course)",null,null,null,null,null,null,null,null,null,null,null,null,null,null,null,null,null,"Japanese language institution (Advanced vocational school of general course)"]
[null,"□","日本語教育機関 （準備教育課程）",null,null,null,null,null,null,null,null,null,null,null,null,null,null,null,null,null,null,"□","日本語教育機関 （各種学校）"]
[null,null,"Japanese language institution (Preparatory courses)",null,null,null,null,null,null,null,null,null,null,null,null,null,null,null,null,null,null,"Japanese language institution (Miscellaneous school)"]
[null,"■","日本語教育機関 （その他）"]
[null,null,"Japanese language institution (Others)"]
[null,"□","高等学校",null,null,null,null,null,null,"□","中学校",null,null,null,null,null,"□","小学校",null,null,null,null,null,"□","その他 （",null,null,null,null,null,null,null,null,"）"]
[null,null,"Senior high school",null,null,null,null,null,null,null,"Junior high school",null,null,null,null,null,null,"Elementary school",null,null,null,null,null,null,"Others"]

{"sheet":"所属機関用２","index":8,"n_rows":69,"n_cols":34,"rows_kept":69,"cut":false,"hidden":true,"merged":[[68,1,69,33],[51,7,51,16],[51,20,52,24],[51,27,52,31],[55,20,56,24],[55,27,56,31],[63,1,64,18],[63,22,64,24],[63,25,63,26],[63,27,64,28],[63,29,63,30],[29,10,30,16],[33,1,33,33],[37,28,38,32],[42,5,43,23],[45,5,46,23],[48,26,49,32],[63,31,64,32],[64,25,64,26],[64,29,64,30],[49,2,49,25],[26,10,27,16],[5,1,7,33],[15,10,16,16],[16,2,16,9],[21,8,22,12],[21,27,22,32]]}
["所属機関等作成用 ２　　　Ｐ　（「留学」）",null,null,null,null,null,null,null,null,null,null,null,null,null,null,null,null,null,null,null,null,null,null,null,null,"在留資格認定証明書用"]
["For organization, part 2  P (\"Student\")",null,null,null,null,null,null,null,null,null,null,null,null,null,null,null,null,null,null,null,null,null,null,null,null,"    For certificate of eligibility"]
[]
["6　学部・課程 ",null,null,null,null,"Faculty / Course"]
[null,"（5で大学院，大学，短期大学（いずれも聴講生・科目等履修生及び研究生の場合を含む）を選択した場合に記入）"]
[null,"(Check the following item(s) if you selected Doctor, Master, Graduate school (Research student), Undergraduate student, University (Auditor elective course student), University (Research student), Junior college (Regular student) or Junior college (Auditor elective course student) as your answer to question 5)"]
[]
[]
[]
[null,"□","法学",null,null,null,"□","経済学",null,null,null,null,"□","政治学",null,null,null,null,"□","商学",null,null,null,null,"□","経営学",null,null,null,null,"□","文学"]
[null,null,"Law ",null,null,null,null,"Economics",null,null,null,null,null,"Politics",null,null,null,null,null,"Commercial science",null,null,null,null,null,"Business administration",null,null,null,null,null,"Literature"]
[]
[null,"□","語学",null,null,null,"□","社会学",null,null,null,null,"□","歴史学",null,null,null,null,"□","心理学",null,null,null,null,"□","教育学",null,null,null,null,"□","芸術学"]
[null,null,"Linguistics",null,null,null,null,"Sociology",null,null,null,null,null,"History",null,null,null,null,null,"Psychology",null,null,null,null,null,"Education",null,null,null,null,null,"Science of art"]
[]
[null,"□","その他人文・社会科学 （",null,null,null,null,null,null,null,null,null,null,null,null,null,null,"）","□","理学",null,null,null,null,"□","化学",null,null,null,null,"□","工学"]
[null,null,"Others(cultural science/ social science)",null,null,null,null,null,null,null,null,null,null,null,null,null,null,null,null,"Science",null,null,null,null,null,"Chemistry",null,null,null,null,null,"Engineer"]
[]
[null,"□","農学",null,null,null,"□","水産学",null,null,null,null,"□","薬学",null,null,null,null,"□","医学",null,null,null,null,"□","歯学"]
[null,null,"Agriculture",null,null,null,null,"Fisheries",null,null,null,null,null,null,"Pharmacy",null,null,null,null,"Medicine",null,null,null,null,null,"Dentistry"]
[]
[null,"□","その他自然科学 （",null,null,null,null,null,null,null,null,null,null,"）",null,"□","体育学",null,null,null,null,null,null,"□","その他 （",null,null,null,null,null,null,null,null,"）"]
[null,null,"Others(natural science)",null,null,null,null,null,null,null,null,null,null,null,null,null,"Sports science",null,null,null,null,null,null,null,"Others"]
[]
["7　所属予定の研究室（5で大学院を選択した場合に記入）"]
[null,"Research room (Fill in the following item(s), if you selected Doctor, Master or Graduate school (Research student) as your answer to question 5)"]
[null,"(1)研究室名"]
[null,null,"Name of research room"]
[]
[null,"(2)指導教員氏名"]
[null,null,"Name of mentoring professor"]
[]
["8　専門課程名称 （5で高等専門学校～各種学校を選択した場合に記入）"]
[null,"Name of specialized course (Check the following item(s) if you selected \"Technical school\" through to \"Miscellaneous school\" as your answer to question 5)"]
[null,"□","工業",null,null,null,"□","農業",null,null,null,"□","医療・衛生",null,null,null,null,null,null,null,"□","教育・社会福祉",null,null,null,null,null,null,"□","法律"]
[null,null,"Engineering",null,null,null,null,"Agriculture",null,null,null,null,"Medical services / Hygienics",null,null,null,null,null,null,null,null,"Education / Social welfare",null,null,null,null,null,null,null,"Law"]
[]
[null,"□","商業実務",null,null,null,null,null,"□","服飾・家政",null,null,null,null,null,null,"□","文化・教養",null,null,null,null,null,null,"□","その他 （",null,null,null,null,null,null,null,"）"]
[null,null,"Practical commercial business",null,null,null,null,null,null,null,"Dress design / Home economics",null,null,null,null,null,null,null,"Culture / Education",null,null,null,null,null,null,"Others"]
[]
["9　仲介業者又は仲介者",null,null,null,null,null,null,null,"※外国（国外）の機関について記載",null,null,null,null,null,null,null,null,"*Description of a foreign (outside of Japan) organization"]
[null,"Name of intermediary agency or person "]
[null,"(1)名称",null,null,null,{"$f":"学校情報!D21","v":"上海灝陸文化交流策划有限会社"}]
[null,null,"Name"]
[]
[null,"(2)住所",null,null,null,"中国上海市浦東新区恵南鎮沪南路9629号1幢2階201号室"]
[null,null,"Address"]
[]
[null,"(3)本国政府による登録番号（ベトナムの場合に記入）"]
[null,null,"Registration number issued by the government (Fill in the following item if the applicant is a Vietnamese national)"]
[]
["10　卒業年月（予定）",null,null,null,null,null,null,"Month and year of (scheduled) graduation",null,null,null,null,null,null,null,null,null,null,null,null,{"$f":"YEAR(学校情報!D29)","v":2025},null,null,null,null,"年",null,{"$f":"MONTH(学校情報!D29)","v":3},null,null,null,null,"月"]
[null,"（交換留学生の場合，11に交換留学受入満了年月を記入）",null,null,null,null,null,null,null,null,null,null,null,null,null,null,null,null,null,null,null,null,null,null,null,"Year(s)",null,null,null,null,null,null,"Month(s)"]
[null,"(If you are an exchange student, fill in the expiration date of the exchange student acceptance period in (11))"]
[]
["11　交換留学受入満了年月",null,null,null,null,null,null,null,null,null,null,null,null,null,null,null,null,null,null,null,null,null,null,null,null,"年",null,null,null,null,null,null,"月"]
[null,"Month and year of expiration of the exchange student acceptance period",null,null,null,null,null,null,null,null,null,null,null,null,null,null,null,null,null,null,null,null,null,null,null,"Year(s)",null,null,null,null,null,null,"Month(s)"]
[]
[]
[null,"以上の記載内容は事実と相違ありません。",null,null,null,null,null,null,null,null,null,null,null,null,null,null,"I hereby declare that the statement given above is true and correct. "]
[null,"教育機関名，代表者氏名の記名／申請書作成年月日"]
[null,"Name of the educational institution and representative of the educational institution ／Date of filling in this form "]
[]
[null,{"$f":"学校情報!D19","v":"行知学園日本語学校高田馬場校　校長　中山　直人"},null,null,null,null,null,null,null,null,null,null,null,null,null,null,null,null,null,null,null,null,2023,null,null,"年",null,6,null,"月",null,2,null,"日"]
[null,null,null,null,null,null,null,null,null,null,null,null,null,null,null,null,null,null,null,null,null,null,null,null,null,"Year",null,null,null,"Month",null,null,null,"Day"]
[]
[null,"注意",null,"Attention"]
[null,"申請書作成後申請までに記載内容に変更が生じた場合，所属機関等が変更箇所を訂正すること。"]
[null,"In cases where descriptions have changed after filling in this application form up until submission of this application,  the organization must correct the changed part ."]

{"sheet":"学校情報","index":9,"n_rows":29,"n_cols":7,"rows_kept":29,"cut":false,"hidden":true,"merged":[[0,6,1,8],[0,9,1,11]]}
["新入生申請時",null,null,null,null,null,"為替レート"]
[null,"■日本における連絡先／通学先／教育を受ける所在地"]
[null,null,"住所","東京都新宿区高田馬場1-25-29 ファザーランド高田馬場 ４階"]
[null,null,"名称","行知学園日本語学校高田馬場校"]
[null,null,"電話番号","03-6205-9930"]
[null,null,"携帯電話番号","080-4297-3280"]
[]
[null,"■申請人、法定代理人、法第７条の２第２項に規定する代理人"]
[null,null,"氏名","谷井　源"]
[null,null,"本人との関係","受入機関職員"]
[null,null,"住所","東京都新宿区高田馬場1-25-29 ファザーランド高田馬場 ４階"]
[null,null,"電話番号","03-6205-9930"]
[null,null,"携帯電話番号","080-4297-3280"]
[]
[null,"■生活指導担当者"]
[null,null,"氏名","李　明"]
[]
[null,"■校長名"]
[null,null,"氏名","行知学園日本語学校高田馬場校　校長　中山　直人"]
[]
[null,"■仲介業者情報",null,"上海灝陸文化交流策划有限会社"]
[]
[null,"■法人名",null,"行知学園株式会社"]
[null,"■法人番号",null,4011101068450]
[]
[null,"■入国予定年月",null,{"$f":"DATE(申請人用１!H55,申請人用１!N55,申請人用１!R55)","v":"2023-10-01"}]
[null,"■滞在予定年月",null,{"$f":"IF(申請人用１!H58=\"\",\"0\",LEFT(申請人用１!H58,1))","v":"1"},"年"]
[null,null,null,{"$f":"IFERROR(IF(FIND(\".\",申請人用１!H58),MID(申請人用１!H58,3,1)),\"0\")","v":"6"},"ヶ月"]
[null,"■卒業予定年月",null,{"$f":"DATE(YEAR(D26)+D27,MONTH(D26)+D28-1,DAY(D26))","v":"2025-03-01"}]

{"sheet":"願書①","index":10,"n_rows":63,"n_cols":27,"rows_kept":63,"cut":false,"hidden":true,"merged":[[62,1,62,2],[62,9,62,10],[62,17,62,21],[62,23,62,26],[29,1,29,4],[29,6,29,11],[29,13,29,14],[29,19,29,20],[29,25,29,26],[60,1,60,2],[60,9,60,10],[60,17,60,21],[60,23,60,26],[61,1,61,2],[61,9,61,10],[61,17,61,21],[61,23,61,26],[58,1,58,7],[58,9,58,15],[58,17,58,21],[58,23,58,26],[59,1,59,2],[59,9,59,10],[59,17,59,21],[59,23,59,26],[53,1,53,5],[53,7,53,14],[53,16,53,17],[53,22,53,23],[55,4,56,5],[57,1,57,7],[57,9,57,15],[57,17,57,21],[57,23,57,26],[51,1,51,5],[51,7,51,14],[51,16,51,17],[51,22,51,23],[52,1,52,5],[52,7,52,14],[52,16,52,17],[52,22,52,23],[49,1,49,5],[49,7,49,14],[49,16,49,20],[49,22,49,26],[50,1,50,5],[50,7,50,14],[50,16,50,20],[50,22,50,26],[44,1,44,5],[44,7,44,14],[44,16,44,17],[44,22,44,23],[45,1,45,5],[45,7,45,14],[45,16,45,17],[45,22,45,23],[42,1,42,5],[42,7,42,14],[42,16,42,20],[42,22,42,26],[43,1,43,5],[43,7,43,14],[43,16,43,17],[43,22,43,23],[36,4,37,9],[36,14,37,17],[36,22,37,23],[36,25,37,25],[41,1,41,5],[41,7,41,14],[41,16,41,20],[41,22,41,26],[30,1,30,4],[30,6,30,11],[30,13,30,14],[30,19,30,20],[30,25,30,26],[31,23,31,24],[31,25,32,26],[32,23,32,24],[27,1,27,4],[27,6,27,11],[27,13,27,14],[27,19,27,20],[27,25,27,26],[28,1,28,4],[28,6,28,11],[28,13,28,14],[28,19,28,20],[28,25,28,26],[25,1,25,4],[25,6,25,11],[25,13,25,14],[25,19,25,20],[25,25,25,26],[26,1,26,4],[26,6,26,11],[26,13,26,14],[26,19,26,20],[26,25,26,26],[23,1,23,4],[23,6,23,11],[23,13,23,17],[23,19,23,23],[23,25,23,26],[24,1,24,4],[24,6,24,11],[24,13,24,17],[24,19,24,23],[24,25,24,26],[0,0,0,26],[1,0,1,26],[3,3,4,9],[3,13,4,14],[3,16,4,16],[3,18,4,18],[15,3,16,11],[15,17,16,26],[18,3,19,11],[18,17,19,18],[18,20,19,21],[18,23,19,24],[6,4,7,9],[6,13,7,21],[9,2,10,5],[9,9,10,13],[9,18,10,24],[12,3,13,6],[12,12,13,16],[12,21,13,26]]}
["入学願書及び履歴書"]
["Application for Admission"]
[]
[1,"国籍",null,{"$f":"IF(申請者情報!E4=\"\",\"\",申請者情報!E4)","v":""},null,null,null,null,null,null,2,"生年月日",null,{"$f":"IF(申請者情報!T3=\"\",\"\",申請者情報!T3)","v":""},null,"年",{"$f":"IF(申請者情報!V3=\"\",\"\",申請者情報!V3)","v":""},"月",{"$f":"IF(申請者情報!X3=\"\",\"\",申請者情報!X3)","v":""},"日"]
[null,"Nationality",null,null,null,null,null,null,null,null,null,"Date of birth",null,null,null,"Year",null,"Mon",null,"Day"]
[]
[3,"氏名(漢字)",null,null,{"$f":"IF(申請者情報!E3=\"\",\"\",申請者情報!E3)","v":""},null,null,null,null,null,null,"(英字)",null,{"$f":"IF(申請者情報!K3=\"\",\"\",申請者情報!K3)","v":""}]
[null,"Name in Chinese character",null,null,null,null,null,null,null,null,null,"Name in English"]
[]
[4,"性別",{"$f":"IF(申請者情報!Q3=\"\",\"\",申請者情報!Q3)","v":""},null,null,null,5,"出生地",null,{"$f":"IF(申請者情報!K4=\"\",\"\",申請者情報!K4)","v":""},null,null,null,null,6,"配偶者の有無",null,null,"無　Single"]
[null,"Sex",null,null,null,null,null,"Place of birth",null,null,null,null,null,null,null,"Marital status"]
[]
[7,"職業",null,{"$f":"IF(申請者情報!T4=\"\",\"\",申請者情報!T4)","v":""},null,null,null,null,8,"自宅電話番号",null,null,{"$f":"IF(申請者情報!E6=\"\",\"\",申請者情報!E6)","v":""},null,null,null,null,null,"携帯電話番号",null,null,{"$f":"IF(申請者情報!Q6=\"\",\"\",申請者情報!Q6)","v":""}]
[null,"Occupation",null,null,null,null,null,null,null,"Home telephone No.",null,null,null,null,null,null,null,null,"Cellular Phone No."]
[]
[9,"現住所",null,{"$f":"IF(申請者情報!E5=\"\",\"\",申請者情報!E5)","v":""},null,null,null,null,null,null,null,null,null,"戸籍住所",null,null,null,{"$f":"IF(申請者情報!Q5=\"\",\"\",申請者情報!Q5)","v":""}]
[null,"Current address",null,null,null,null,null,null,null,null,null,null,null,"Permanent residential address"]
[]
[10,"旅券番号",null,{"$f":"IF(申請者情報!E7=\"\",\"\",申請者情報!E7)","v":""},null,null,null,null,null,null,null,null,null,"旅券有効期限",null,null,null,{"$f":"IF(申請者情報!T7=\"\",\"\",申請者情報!T7)","v":""},null,"年",{"$f":"IF(申請者情報!V7=\"\",\"\",申請者情報!V7)","v":""},null,"月",{"$f":"IF(申請者情報!X7=\"\",\"\",申請者情報!X7)","v":""},null,"日"]
[null,"Passport No. ",null,null,null,null,null,null,null,null,null,null,null,"Date of expiration",null,null,null,null,null,"Year",null,null,"Mon",null,null,"Day"]
[]
[11,"学歴(小学校から最終学歴まで順次記入してください）"]
[null,"Education Background(Please indicate from primary school onwards)"]
[null,"学校名",null,null,null,null,"所在地",null,null,null,null,null,null,"入学年月",null,null,null,null,null,"卒業年月",null,null,null,null,null,"年数"]
[null,"School name",null,null,null,null,"Location",null,null,null,null,null,null,"Admission date",null,null,null,null,null,"Graduation date",null,null,null,null,null,"Total Period"]
[null,{"$f":"IF(申請者情報!D10=\"\",\"\",申請者情報!D10)","v":""},null,null,null,null,{"$f":"IF(申請者情報!I10=\"\",\"\",申請者情報!I10)","v":""},null,null,null,null,null,null,{"$f":"IF(申請者情報!R10=\"\",\"\",申請者情報!R10)","v":""},null,"年",{"$f":"IF(申請者情報!T10=\"\",\"\",申請者情報!T10)","v":""},"月",null,{"$f":"IF(申請者情報!V10=\"\",\"\",申請者情報!V10)","v":""},null,"年",{"$f":"IF(申請者情報!X10=\"\",\"\",申請者情報!X10)","v":""},"月",null,{"$f":"IF(N26=\"\",\"\",DATEDIF(DATE(N26,Q26,1),DATE(T26,W26,1),\"Y\")+1)","v":""}]
[null,{"$f":"IF(申請者情報!D11=\"\",\"\",申請者情報!D11)","v":""},null,null,null,null,{"$f":"IF(申請者情報!I11=\"\",\"\",申請者情報!I11)","v":""},null,null,null,null,null,null,{"$f":"IF(申請者情報!R11=\"\",\"\",申請者情報!R11)","v":""},null,"年",{"$f":"IF(申請者情報!T11=\"\",\"\",申請者情報!T11)","v":""},"月",null,{"$f":"IF(申請者情報!V11=\"\",\"\",申請者情報!V11)","v":""},null,"年",{"$f":"IF(申請者情報!X11=\"\",\"\",申請者情報!X11)","v":""},"月",null,{"$f":"IF(N27=\"\",\"\",DATEDIF(DATE(N27,Q27,1),DATE(T27,W27,1),\"Y\")+1)","v":""}]
[null,{"$f":"IF(申請者情報!D12=\"\",\"\",申請者情報!D12)","v":""},null,null,null,null,{"$f":"IF(申請者情報!I12=\"\",\"\",申請者情報!I12)","v":""},null,null,null,null,null,null,{"$f":"IF(申請者情報!R12=\"\",\"\",申請者情報!R12)","v":""},null,"年",{"$f":"IF(申請者情報!T12=\"\",\"\",申請者情報!T12)","v":""},"月",null,{"$f":"IF(申請者情報!V12=\"\",\"\",申請者情報!V12)","v":""},null,"年",{"$f":"IF(申請者情報!X12=\"\",\"\",申請者情報!X12)","v":""},"月",null,""]
[null,{"$f":"IF(申請者情報!D13=\"\",\"\",申請者情報!D13)","v":""},null,null,null,null,{"$f":"IF(申請者情報!I13=\"\",\"\",申請者情報!I13)","v":""},null,null,null,null,null,null,{"$f":"IF(申請者情報!R13=\"\",\"\",申請者情報!R13)","v":""},null,"年",{"$f":"IF(申請者情報!T13=\"\",\"\",申請者情報!T13)","v":""},"月",null,{"$f":"IF(申請者情報!V13=\"\",\"\",申請者情報!V13)","v":""},null,"年",{"$f":"IF(申請者情報!X13=\"\",\"\",申請者情報!X13)","v":""},"月",null,""]
[null,{"$f":"IF(申請者情報!D14=\"\",\"\",申請者情報!D14)","v":""},null,null,null,null,{"$f":"IF(申請者情報!I14=\"\",\"\",申請者情報!I14)","v":""},null,null,null,null,null,null,{"$f":"IF(申請者情報!R14=\"\",\"\",申請者情報!R14)","v":""},null,"年",{"$f":"IF(申請者情報!T14=\"\",\"\",申請者情報!T14)","v":""},"月",null,{"$f":"IF(申請者情報!V14=\"\",\"\",申請者情報!V14)","v":""},null,"年",{"$f":"IF(申請者情報!X14=\"\",\"\",申請者情報!X14)","v":""},"月",null,""]
[null,{"$f":"IF(申請者情報!D15=\"\",\"\",申請者情報!D15)","v":""},null,null,null,null,{"$f":"IF(申請者情報!I15=\"\",\"\",申請者情報!I15)","v":""},null,null,null,null,null,null,{"$f":"IF(申請者情報!R15=\"\",\"\",申請者情報!R15)","v":""},null,"年",{"$f":"IF(申請者情報!T15=\"\",\"\",申請者情報!T15)","v":""},"月",null,{"$f":"IF(申請者情報!V15=\"\",\"\",申請者情報!V15)","v":""},null,"年",{"$f":"IF(申請者情報!X15=\"\",\"\",申請者情報!X15)","v":""},"月",null,""]
[null,null,null,null,null,null,null,null,null,null,null,null,null,null,null,null,null,null,null,null,null,null,null,"合計年数",null,{"$f":"IF(OR(申請者情報!V16=\"\",申請者情報!V16=\"未選択\"),\"\",IF(申請者情報!X16>1,申請者情報!V16+1,申請者情報!V16))","v":""}]
[12,"日本語能力",null,null,null,null,null,null,null,null,null,null,null,null,null,null,null,null,null,null,null,null,null,"Total　period"]
[null,"Japanese education history"]
[null,"・試験による証明"]
[null,"  Proof based on a Japanese language test"]
[null,"  試験名",null,null,{"$f":"IF(申請者情報!L17=\"\",\"\",申請者情報!L17)","v":""},null,null,null,null,null,null,"級又は点数",null,null,{"$f":"IF(申請者情報!T17=\"\",\"\",申請者情報!T17)","v":""},null,null,null,null,"受験年月",null,null,{"$f":"IF(申請者情報!V17=\"\",\"\",申請者情報!V17)","v":""},null,"年",{"$f":"IF(申請者情報!X17=\"\",\"\",申請者情報!X17)","v":""},"月"]
[null,"  Name of the test",null,null,null,null,null,null,null,null,null,"Attained level or score",null,null,null,null,null,null,null,"Date of test",null,null,null,null,"Year",null,"Mon"]
[]
[null,"・日本語学習歴"]
[null,"  Japanese education history"]
[null,"学校名",null,null,null,null,null,"所在地",null,null,null,null,null,null,null,null,"入学年月",null,null,null,null,null,"卒業年月"]
[null,"School name",null,null,null,null,null,"Location",null,null,null,null,null,null,null,null,"Admission date",null,null,null,null,null,"Graduation date"]
[null,{"$f":"IF(申請者情報!C19=\"\",\"\",申請者情報!C19)","v":""},null,null,null,null,null,{"$f":"IF(申請者情報!I19=\"\",\"\",申請者情報!I19)","v":""},null,null,null,null,null,null,null,null,{"$f":"IF(申請者情報!R19=\"\",\"\",申請者情報!R19)","v":""},null,"年",{"$f":"IF(申請者情報!T19=\"\",\"\",申請者情報!T19)","v":""},"月",null,{"$f":"IF(申請者情報!V19=\"\",\"\",申請者情報!V19)","v":""},null,"年",{"$f":"IF(申請者情報!X19=\"\",\"\",申請者情報!X19)","v":""},"月"]
[null,{"$f":"IF(申請者情報!C20=\"\",\"\",申請者情報!C20)","v":""},null,null,null,null,null,{"$f":"IF(申請者情報!I20=\"\",\"\",申請者情報!I20)","v":""},null,null,null,null,null,null,null,null,{"$f":"IF(申請者情報!R20=\"\",\"\",申請者情報!R20)","v":""},null,"年",{"$f":"IF(申請者情報!T20=\"\",\"\",申請者情報!T20)","v":""},"月",null,{"$f":"IF(申請者情報!V20=\"\",\"\",申請者情報!V20)","v":""},null,"年",{"$f":"IF(申請者情報!X20=\"\",\"\",申請者情報!X20)","v":""},"月"]
[null,{"$f":"IF(申請者情報!C21=\"\",\"\",申請者情報!C21)","v":""},null,null,null,null,null,{"$f":"IF(申請者情報!I21=\"\",\"\",申請者情報!I21)","v":""},null,null,null,null,null,null,null,null,{"$f":"IF(申請者情報!R21=\"\",\"\",申請者情報!R21)","v":""},null,"年",{"$f":"IF(申請者情報!T21=\"\",\"\",申請者情報!T21)","v":""},"月",null,{"$f":"IF(申請者情報!V21=\"\",\"\",申請者情報!V21)","v":""},null,"年",{"$f":"IF(申請者情報!X21=\"\",\"\",申請者情報!X21)","v":""},"月"]
[]
[14,"職歴(就職年月日順に記入してください)"]
[null,"Work　experience(Please list in chronological order with the most recent joｂ last)"]
[null,"会社名",null,null,null,null,null,"所在地",null,null,null,null,null,null,null,null,"就職年月",null,null,null,null,null,"退職年月"]
[null,"Employer's name",null,null,null,null,null,"Location",null,null,null,null,null,null,null,null,"Date of Employment",null,null,null,null,null,"Date of Resignation"]
[null,{"$f":"IF(申請者情報!C23=\"\",\"无\",申請者情報!C23)","v":"无"},null,null,null,null,null,{"$f":"IF(申請者情報!I23=\"\",\"\",申請者情報!I23)","v":""},null,null,null,null,null,null,null,null,{"$f":"IF(申請者情報!R23=\"\",\"\",申請者情報!R23)","v":""},null,"年",{"$f":"IF(申請者情報!T23=\"\",\"\",申請者情報!T23)","v":""},"月",null,{"$f":"IF(申請者情報!V23=\"\",\"\",申請者情報!V23)","v":""},null,"年",{"$f":"IF(申請者情報!X23=\"\",\"\",申請者情報!X23)","v":""},"月"]
[null,{"$f":"IF(申請者情報!C24=\"\",\"\",申請者情報!C24)","v":""},null,null,null,null,null,{"$f":"IF(申請者情報!I24=\"\",\"\",申請者情報!I24)","v":""},null,null,null,null,null,null,null,null,{"$f":"IF(申請者情報!R24=\"\",\"\",申請者情報!R24)","v":""},null,"年",{"$f":"IF(申請者情報!T24=\"\",\"\",申請者情報!T24)","v":""},"月",null,{"$f":"IF(申請者情報!V24=\"\",\"\",申請者情報!V24)","v":""},null,"年",{"$f":"IF(申請者情報!X24=\"\",\"\",申請者情報!X24)","v":""},"月"]
[null,null,null,null,null,null,null,null,null,null,null,null,null,null,null,null,null,null,"年",null,"月",null,null,null,"年",null,"月"]
[]
[15,"日本国出入国歴",null,null,{"$f":"IF(OR(申請者情報!L25=\"\",申請者情報!L25=\"否\"),IF(OR(申請者情報!F25=\"\",申請者情報!F25=0),\"\",申請者情報!F25),IF(申請者情報!L25=\"是\",出入国歴_別紙!X28,IF(OR(申請者情報!F25=\"\",申請者情報!F25=0),\"\",申請者情報!F25)))","v":""},null,"回",null,"別紙",{"$f":"IF(AND(E56>=5,E56<>\"\"),\"☑\",\"□\")","v":"□"},"有"]
[null,"Previous stay in Japan",null,null,null,null,"time(s)"]
[null,"入国年月日",null,null,null,null,null,null,null,"出国年月日",null,null,null,null,null,null,null,"在留資格",null,null,null,null,null,"入国目的"]
[null,"Date of entry",null,null,null,null,null,null,null,"Date of departure",null,null,null,null,null,null,null,"Visa status",null,null,null,null,null,"Purpose of entry"]
[null,{"$f":"IF(OR(申請者情報!C27=\"\",$E$56>=5),\"\",申請者情報!C27)","v":""},null,"年",{"$f":"IF(OR(申請者情報!E27=\"\",$E$56>=5),\"\",申請者情報!E27)","v":""},"月",{"$f":"IF(OR(申請者情報!G27=\"\",$E$56>=5),\"\",申請者情報!G27)","v":""},"日",null,{"$f":"IF(OR(申請者情報!I27=\"\",$E$56>=5),\"\",申請者情報!I27)","v":""},null,"年",{"$f":"IF(OR(申請者情報!K27=\"\",$E$56>=5),\"\",申請者情報!K27)","v":""},"月",{"$f":"IF(OR(申請者情報!M27=\"\",$E$56>=5),\"\",申請者情報!M27)","v":""},"日",null,{"$f":"IF(OR(申請者情報!O27=\"\",$E$56>=5),\"\",申請者情報!O27)","v":""},null,null,null,null,null,{"$f":"IF(OR(申請者情報!V27=\"\",$E$56>=5),\"\",申請者情報!V27)","v":""}]
[null,{"$f":"IF(OR(申請者情報!C28=\"\",$E$56>=5),\"\",申請者情報!C28)","v":""},null,"年",{"$f":"IF(OR(申請者情報!E28=\"\",$E$56>=5),\"\",申請者情報!E28)","v":""},"月",{"$f":"IF(OR(申請者情報!G28=\"\",$E$56>=5),\"\",申請者情報!G28)","v":""},"日",null,{"$f":"IF(OR(申請者情報!I28=\"\",$E$56>=5),\"\",申請者情報!I28)","v":""},null,"年",{"$f":"IF(OR(申請者情報!K28=\"\",$E$56>=5),\"\",申請者情報!K28)","v":""},"月",{"$f":"IF(OR(申請者情報!M28=\"\",$E$56>=5),\"\",申請者情報!M28)","v":""},"日",null,{"$f":"IF(OR(申請者情報!O28=\"\",$E$56>=5),\"\",申請者情報!O28)","v":""},null,null,null,null,null,{"$f":"IF(OR(申請者情報!V28=\"\",$E$56>=5),\"\",申請者情報!V28)","v":""}]
[null,{"$f":"IF(OR(申請者情報!C29=\"\",$E$56>=5),\"\",申請者情報!C29)","v":""},null,"年",{"$f":"IF(OR(申請者情報!E29=\"\",$E$56>=5),\"\",申請者情報!E29)","v":""},"月",{"$f":"IF(OR(申請者情報!G29=\"\",$E$56>=5),\"\",申請者情報!G29)","v":""},"日",null,{"$f":"IF(OR(申請者情報!I29=\"\",$E$56>=5),\"\",申請者情報!I29)","v":""},null,"年",{"$f":"IF(OR(申請者情報!K29=\"\",$E$56>=5),\"\",申請者情報!K29)","v":""},"月",{"$f":"IF(OR(申請者情報!M29=\"\",$E$56>=5),\"\",申請者情報!M29)","v":""},"日",null,{"$f":"IF(OR(申請者情報!O29=\"\",$E$56>=5),\"\",申請者情報!O29)","v":""},null,null,null,null,null,{"$f":"IF(OR(申請者情報!V29=\"\",$E$56>=5),\"\",申請者情報!V29)","v":""}]
[null,{"$f":"IF(OR(申請者情報!C30=\"\",$E$56>=5),\"\",申請者情報!C30)","v":""},null,"年",{"$f":"IF(OR(申請者情報!E30=\"\",$E$56>=5),\"\",申請者情報!E30)","v":""},"月",{"$f":"IF(OR(申請者情報!G30=\"\",$E$56>=5),\"\",申請者情報!G30)","v":""},"日",null,{"$f":"IF(OR(申請者情報!I30=\"\",$E$56>=5),\"\",申請者情報!I30)","v":""},null,"年",{"$f":"IF(OR(申請者情報!K30=\"\",$E$56>=5),\"\",申請者情報!K30)","v":""},"月",{"$f":"IF(OR(申請者情報!M30=\"\",$E$56>=5),\"\",申請者情報!M30)","v":""},"日",null,{"$f":"IF(OR(申請者情報!O30=\"\",$E$56>=5),\"\",申請者情報!O30)","v":""},null,null,null,null,null,{"$f":"IF(OR(申請者情報!V30=\"\",$E$56>=5),\"\",申請者情報!V30)","v":""}]

{"sheet":"願書① (H)","index":11,"n_rows":63,"n_cols":27,"rows_kept":63,"cut":false,"hidden":true,"merged":[[62,1,62,2],[62,9,62,10],[62,17,62,21],[62,23,62,26],[29,1,29,4],[29,6,29,11],[29,13,29,14],[29,19,29,20],[29,25,29,26],[60,1,60,2],[60,9,60,10],[60,17,60,21],[60,23,60,26],[61,1,61,2],[61,9,61,10],[61,17,61,21],[61,23,61,26],[58,1,58,7],[58,9,58,15],[58,17,58,21],[58,23,58,26],[59,1,59,2],[59,9,59,10],[59,17,59,21],[59,23,59,26],[53,1,53,5],[53,7,53,14],[53,16,53,17],[53,22,53,23],[55,4,56,5],[57,1,57,7],[57,9,57,15],[57,17,57,21],[57,23,57,26],[51,1,51,5],[51,7,51,14],[51,16,51,17],[51,22,51,23],[52,1,52,5],[52,7,52,14],[52,16,52,17],[52,22,52,23],[49,1,49,5],[49,7,49,14],[49,16,49,20],[49,22,49,26],[50,1,50,5],[50,7,50,14],[50,16,50,20],[50,22,50,26],[44,1,44,5],[44,7,44,14],[44,16,44,17],[44,22,44,23],[45,1,45,5],[45,7,45,14],[45,16,45,17],[45,22,45,23],[42,1,42,5],[42,7,42,14],[42,16,42,20],[42,22,42,26],[43,1,43,5],[43,7,43,14],[43,16,43,17],[43,22,43,23],[36,4,37,9],[36,14,37,17],[36,22,37,23],[36,25,37,25],[41,1,41,5],[41,7,41,14],[41,16,41,20],[41,22,41,26],[30,1,30,4],[30,6,30,11],[30,13,30,14],[30,19,30,20],[30,25,30,26],[31,23,31,24],[31,25,32,26],[32,23,32,24],[27,1,27,4],[27,6,27,11],[27,13,27,14],[27,19,27,20],[27,25,27,26],[28,1,28,4],[28,6,28,11],[28,13,28,14],[28,19,28,20],[28,25,28,26],[25,1,25,4],[25,6,25,11],[25,13,25,14],[25,19,25,20],[25,25,25,26],[26,1,26,4],[26,6,26,11],[26,13,26,14],[26,19,26,20],[26,25,26,26],[23,1,23,4],[23,6,23,11],[23,13,23,17],[23,19,23,23],[23,25,23,26],[24,1,24,4],[24,6,24,11],[24,13,24,17],[24,19,24,23],[24,25,24,26],[0,0,0,26],[1,0,1,26],[3,3,4,9],[3,13,4,14],[3,16,4,16],[3,18,4,18],[15,3,16,11],[15,17,16,26],[18,3,19,11],[18,17,19,18],[18,20,19,21],[18,23,19,24],[6,4,7,9],[6,13,7,21],[9,2,10,5],[9,9,10,13],[9,18,10,24],[12,3,13,6],[12,12,13,16],[12,21,13,26]]}
["入学願書及び履歴書"]
["Application for Admission"]
[]
[1,"国籍",null,{"$f":"IF(申請者情報!E4=\"\",\"\",申請者情報!E4)","v":""},null,null,null,null,null,null,2,"生年月日",null,{"$f":"IF(申請者情報!T3=\"\",\"\",申請者情報!T3)","v":""},null,"年",{"$f":"IF(申請者情報!V3=\"\",\"\",申請者情報!V3)","v":""},"月",{"$f":"IF(申請者情報!X3=\"\",\"\",申請者情報!X3)","v":""},"日"]
[null,"Nationality",null,null,null,null,null,null,null,null,null,"Date of birth",null,null,null,"Year",null,"Mon",null,"Day"]
[]
[3,"氏名(漢字)",null,null,{"$f":"IF(申請者情報!E3=\"\",\"\",申請者情報!E3)","v":""},null,null,null,null,null,null,"(英字)",null,{"$f":"IF(申請者情報!K3=\"\",\"\",申請者情報!K3)","v":""}]
[null,"Name in Chinese character",null,null,null,null,null,null,null,null,null,"Name in English"]
[]
[4,"性別",{"$f":"IF(申請者情報!Q3=\"\",\"\",申請者情報!Q3)","v":""},null,null,null,5,"出生地",null,{"$f":"IF(申請者情報!K4=\"\",\"\",申請者情報!K4)","v":""},null,null,null,null,6,"配偶者の有無",null,null,"無　Single"]
[null,"Sex",null,null,null,null,null,"Place of birth",null,null,null,null,null,null,null,"Marital status"]
[]
[7,"職業",null,{"$f":"IF(申請者情報!T4=\"\",\"\",申請者情報!T4)","v":""},null,null,null,null,8,"自宅電話番号",null,null,{"$f":"IF(申請者情報!E6=\"\",\"\",申請者情報!E6)","v":""},null,null,null,null,null,"携帯電話番号",null,null,{"$f":"IF(申請者情報!Q6=\"\",\"\",申請者情報!Q6)","v":""}]
[null,"Occupation",null,null,null,null,null,null,null,"Home telephone No.",null,null,null,null,null,null,null,null,"Cellular Phone No."]
[]
[9,"現住所",null,{"$f":"IF(申請者情報!E5=\"\",\"\",申請者情報!E5)","v":""},null,null,null,null,null,null,null,null,null,"戸籍住所",null,null,null,{"$f":"IF(申請者情報!Q5=\"\",\"\",申請者情報!Q5)","v":""}]
[null,"Current address",null,null,null,null,null,null,null,null,null,null,null,"Permanent residential address"]
[]
[10,"旅券番号",null,{"$f":"IF(申請者情報!E7=\"\",\"\",申請者情報!E7)","v":""},null,null,null,null,null,null,null,null,null,"旅券有効期限",null,null,null,{"$f":"IF(申請者情報!T7=\"\",\"\",申請者情報!T7)","v":""},null,"年",{"$f":"IF(申請者情報!V7=\"\",\"\",申請者情報!V7)","v":""},null,"月",{"$f":"IF(申請者情報!X7=\"\",\"\",申請者情報!X7)","v":""},null,"日"]
[null,"Passport No. ",null,null,null,null,null,null,null,null,null,null,null,"Date of expiration",null,null,null,null,null,"Year",null,null,"Mon",null,null,"Day"]
[]
[11,"学歴(小学校から最終学歴まで順次記入してください）"]
[null,"Education Background(Please indicate from primary school onwards)"]
[null,"学校名",null,null,null,null,"所在地",null,null,null,null,null,null,"入学年月",null,null,null,null,null,"卒業年月",null,null,null,null,null,"年数"]
[null,"School name",null,null,null,null,"Location",null,null,null,null,null,null,"Admission date",null,null,null,null,null,"Graduation date",null,null,null,null,null,"Total Period"]
[null,{"$f":"IF(申請者情報!D10=\"\",\"\",申請者情報!D10)","v":""},null,null,null,null,{"$f":"IF(申請者情報!I10=\"\",\"\",申請者情報!I10)","v":""},null,null,null,null,null,null,{"$f":"IF(申請者情報!R10=\"\",\"\",申請者情報!R10)","v":""},null,"年",{"$f":"IF(申請者情報!T10=\"\",\"\",申請者情報!T10)","v":""},"月",null,{"$f":"IF(申請者情報!V10=\"\",\"\",申請者情報!V10)","v":""},null,"年",{"$f":"IF(申請者情報!X10=\"\",\"\",申請者情報!X10)","v":""},"月",null,{"$f":"IF(N26=\"\",\"\",DATEDIF(DATE(N26,Q26,1),DATE(T26,W26,1),\"Y\")+1)","v":""}]
[null,{"$f":"IF(申請者情報!D11=\"\",\"\",申請者情報!D11)","v":""},null,null,null,null,{"$f":"IF(申請者情報!I11=\"\",\"\",申請者情報!I11)","v":""},null,null,null,null,null,null,{"$f":"IF(申請者情報!R11=\"\",\"\",申請者情報!R11)","v":""},null,"年",{"$f":"IF(申請者情報!T11=\"\",\"\",申請者情報!T11)","v":""},"月",null,{"$f":"IF(申請者情報!V11=\"\",\"\",申請者情報!V11)","v":""},null,"年",{"$f":"IF(申請者情報!X11=\"\",\"\",申請者情報!X11)","v":""},"月",null,{"$f":"IF(N27=\"\",\"\",DATEDIF(DATE(N27,Q27,1),DATE(T27,W27,1),\"Y\")+1)","v":""}]
[null,{"$f":"IF(申請者情報!D12=\"\",\"\",申請者情報!D12)","v":""},null,null,null,null,{"$f":"IF(申請者情報!I12=\"\",\"\",申請者情報!I12)","v":""},null,null,null,null,null,null,{"$f":"IF(申請者情報!R12=\"\",\"\",申請者情報!R12)","v":""},null,"年",{"$f":"IF(申請者情報!T12=\"\",\"\",申請者情報!T12)","v":""},"月",null,{"$f":"IF(申請者情報!V12=\"\",\"\",申請者情報!V12)","v":""},null,"年",{"$f":"IF(申請者情報!X12=\"\",\"\",申請者情報!X12)","v":""},"月",null,""]
[null,{"$f":"IF(申請者情報!D13=\"\",\"\",申請者情報!D13)","v":""},null,null,null,null,{"$f":"IF(申請者情報!I13=\"\",\"\",申請者情報!I13)","v":""},null,null,null,null,null,null,{"$f":"IF(申請者情報!R13=\"\",\"\",申請者情報!R13)","v":""},null,"年",{"$f":"IF(申請者情報!T13=\"\",\"\",申請者情報!T13)","v":""},"月",null,{"$f":"IF(申請者情報!V13=\"\",\"\",申請者情報!V13)","v":""},null,"年",{"$f":"IF(申請者情報!X13=\"\",\"\",申請者情報!X13)","v":""},"月",null,""]
[null,{"$f":"IF(申請者情報!D14=\"\",\"\",申請者情報!D14)","v":""},null,null,null,null,{"$f":"IF(申請者情報!I14=\"\",\"\",申請者情報!I14)","v":""},null,null,null,null,null,null,{"$f":"IF(申請者情報!R14=\"\",\"\",申請者情報!R14)","v":""},null,"年",{"$f":"IF(申請者情報!T14=\"\",\"\",申請者情報!T14)","v":""},"月",null,{"$f":"IF(申請者情報!V14=\"\",\"\",申請者情報!V14)","v":""},null,"年",{"$f":"IF(申請者情報!X14=\"\",\"\",申請者情報!X14)","v":""},"月",null,""]
[null,{"$f":"IF(申請者情報!D15=\"\",\"\",申請者情報!D15)","v":""},null,null,null,null,{"$f":"IF(申請者情報!I15=\"\",\"\",申請者情報!I15)","v":""},null,null,null,null,null,null,{"$f":"IF(申請者情報!R15=\"\",\"\",申請者情報!R15)","v":""},null,"年",{"$f":"IF(申請者情報!T15=\"\",\"\",申請者情報!T15)","v":""},"月",null,{"$f":"IF(申請者情報!V15=\"\",\"\",申請者情報!V15)","v":""},null,"年",{"$f":"IF(申請者情報!X15=\"\",\"\",申請者情報!X15)","v":""},"月",null,""]
[null,null,null,null,null,null,null,null,null,null,null,null,null,null,null,null,null,null,null,null,null,null,null,"合計年数",null,{"$f":"IF(OR(申請者情報!V16=\"\",申請者情報!V16=\"未選択\"),\"\",IF(申請者情報!X16>1,申請者情報!V16+1,申請者情報!V16))","v":""}]
[12,"日本語能力",null,null,null,null,null,null,null,null,null,null,null,null,null,null,null,null,null,null,null,null,null,"Total　period"]
[null,"Japanese education history"]
[null,"・試験による証明"]
[null,"  Proof based on a Japanese language test"]
[null,"  試験名",null,null,{"$f":"IF(申請者情報!L17=\"\",\"\",申請者情報!L17)","v":""},null,null,null,null,null,null,"級又は点数",null,null,{"$f":"IF(申請者情報!T17=\"\",\"\",申請者情報!T17)","v":""},null,null,null,null,"受験年月",null,null,{"$f":"IF(申請者情報!V17=\"\",\"\",申請者情報!V17)","v":""},null,"年",{"$f":"IF(申請者情報!X17=\"\",\"\",申請者情報!X17)","v":""},"月"]
[null,"  Name of the test",null,null,null,null,null,null,null,null,null,"Attained level or score",null,null,null,null,null,null,null,"Date of test",null,null,null,null,"Year",null,"Mon"]
[]
[null,"・日本語学習歴"]
[null,"・Japanese education history"]
[null,"学校名",null,null,null,null,null,"所在地",null,null,null,null,null,null,null,null,"入学年月",null,null,null,null,null,"卒業年月"]
[null,"School name",null,null,null,null,null,"Location",null,null,null,null,null,null,null,null,"Admission date",null,null,null,null,null,"Graduation date"]
[null,{"$f":"IF(申請者情報!C19=\"\",\"\",申請者情報!C19)","v":""},null,null,null,null,null,{"$f":"IF(申請者情報!I19=\"\",\"\",申請者情報!I19)","v":""},null,null,null,null,null,null,null,null,{"$f":"IF(申請者情報!R19=\"\",\"\",申請者情報!R19)","v":""},null,"年",{"$f":"IF(申請者情報!T19=\"\",\"\",申請者情報!T19)","v":""},"月",null,{"$f":"IF(申請者情報!V19=\"\",\"\",申請者情報!V19)","v":""},null,"年",{"$f":"IF(申請者情報!X19=\"\",\"\",申請者情報!X19)","v":""},"月"]
[null,{"$f":"IF(申請者情報!C20=\"\",\"\",申請者情報!C20)","v":""},null,null,null,null,null,{"$f":"IF(申請者情報!I20=\"\",\"\",申請者情報!I20)","v":""},null,null,null,null,null,null,null,null,{"$f":"IF(申請者情報!R20=\"\",\"\",申請者情報!R20)","v":""},null,"年",{"$f":"IF(申請者情報!T20=\"\",\"\",申請者情報!T20)","v":""},"月",null,{"$f":"IF(申請者情報!V20=\"\",\"\",申請者情報!V20)","v":""},null,"年",{"$f":"IF(申請者情報!X20=\"\",\"\",申請者情報!X20)","v":""},"月"]
[null,{"$f":"IF(申請者情報!C21=\"\",\"\",申請者情報!C21)","v":""},null,null,null,null,null,{"$f":"IF(申請者情報!I21=\"\",\"\",申請者情報!I21)","v":""},null,null,null,null,null,null,null,null,{"$f":"IF(申請者情報!R21=\"\",\"\",申請者情報!R21)","v":""},null,"年",{"$f":"IF(申請者情報!T21=\"\",\"\",申請者情報!T21)","v":""},"月",null,{"$f":"IF(申請者情報!V21=\"\",\"\",申請者情報!V21)","v":""},null,"年",{"$f":"IF(申請者情報!X21=\"\",\"\",申請者情報!X21)","v":""},"月"]
[]
[14,"職歴(就職年月日順に記入してください)"]
[null,"Work　experience(Please list in chronological order with the most recent joｂ last)"]
[null,"会社名",null,null,null,null,null,"所在地",null,null,null,null,null,null,null,null,"就職年月",null,null,null,null,null,"退職年月"]
[null,"Employer's name",null,null,null,null,null,"Location",null,null,null,null,null,null,null,null,"Date of Employment",null,null,null,null,null,"Date of Resignation"]
[null,{"$f":"IF(申請者情報!C23=\"\",\"なし\",申請者情報!C23)","v":"なし"},null,null,null,null,null,{"$f":"IF(申請者情報!I23=\"\",\"\",申請者情報!I23)","v":""},null,null,null,null,null,null,null,null,{"$f":"IF(申請者情報!R23=\"\",\"\",申請者情報!R23)","v":""},null,"年",{"$f":"IF(申請者情報!T23=\"\",\"\",申請者情報!T23)","v":""},"月",null,{"$f":"IF(申請者情報!V23=\"\",\"\",申請者情報!V23)","v":""},null,"年",{"$f":"IF(申請者情報!X23=\"\",\"\",申請者情報!X23)","v":""},"月"]
[null,{"$f":"IF(申請者情報!C24=\"\",\"\",申請者情報!C24)","v":""},null,null,null,null,null,{"$f":"IF(申請者情報!I24=\"\",\"\",申請者情報!I24)","v":""},null,null,null,null,null,null,null,null,{"$f":"IF(申請者情報!R24=\"\",\"\",申請者情報!R24)","v":""},null,"年",{"$f":"IF(申請者情報!T24=\"\",\"\",申請者情報!T24)","v":""},"月",null,{"$f":"IF(申請者情報!V24=\"\",\"\",申請者情報!V24)","v":""},null,"年",{"$f":"IF(申請者情報!X24=\"\",\"\",申請者情報!X24)","v":""},"月"]
[null,null,null,null,null,null,null,null,null,null,null,null,null,null,null,null,null,null,"年",null,"月",null,null,null,"年",null,"月"]
[]
[15,"日本国出入国歴",null,null,{"$f":"IF(OR(申請者情報!L25=\"\",申請者情報!L25=\"否\"),IF(OR(申請者情報!F25=\"\",申請者情報!F25=0),\"\",申請者情報!F25),IF(申請者情報!L25=\"是\",出入国歴_別紙!X28,IF(OR(申請者情報!F25=\"\",申請者情報!F25=0),\"\",申請者情報!F25)))","v":""},null,"回",null,"別紙",{"$f":"IF(AND(E56>=5,E56<>\"\"),\"☑\",\"□\")","v":"□"},"有"]
[null,"Previous stay in Japan",null,null,null,null,"time(s)"]
[null,"入国年月日",null,null,null,null,null,null,null,"出国年月日",null,null,null,null,null,null,null,"在留資格",null,null,null,null,null,"入国目的"]
[null,"Date of entry",null,null,null,null,null,null,null,"Date of departure",null,null,null,null,null,null,null,"Visa status",null,null,null,null,null,"Purpose of entry"]
[null,{"$f":"IF(OR(申請者情報!C27=\"\",$E$56>=5),\"\",申請者情報!C27)","v":""},null,"年",{"$f":"IF(OR(申請者情報!E27=\"\",$E$56>=5),\"\",申請者情報!E27)","v":""},"月",{"$f":"IF(OR(申請者情報!G27=\"\",$E$56>=5),\"\",申請者情報!G27)","v":""},"日",null,{"$f":"IF(OR(申請者情報!I27=\"\",$E$56>=5),\"\",申請者情報!I27)","v":""},null,"年",{"$f":"IF(OR(申請者情報!K27=\"\",$E$56>=5),\"\",申請者情報!K27)","v":""},"月",{"$f":"IF(OR(申請者情報!M27=\"\",$E$56>=5),\"\",申請者情報!M27)","v":""},"日",null,{"$f":"IF(OR(申請者情報!O27=\"\",$E$56>=5),\"\",申請者情報!O27)","v":""},null,null,null,null,null,{"$f":"IF(OR(申請者情報!V27=\"\",$E$56>=5),\"\",申請者情報!V27)","v":""}]
[null,{"$f":"IF(OR(申請者情報!C28=\"\",$E$56>=5),\"\",申請者情報!C28)","v":""},null,"年",{"$f":"IF(OR(申請者情報!E28=\"\",$E$56>=5),\"\",申請者情報!E28)","v":""},"月",{"$f":"IF(OR(申請者情報!G28=\"\",$E$56>=5),\"\",申請者情報!G28)","v":""},"日",null,{"$f":"IF(OR(申請者情報!I28=\"\",$E$56>=5),\"\",申請者情報!I28)","v":""},null,"年",{"$f":"IF(OR(申請者情報!K28=\"\",$E$56>=5),\"\",申請者情報!K28)","v":""},"月",{"$f":"IF(OR(申請者情報!M28=\"\",$E$56>=5),\"\",申請者情報!M28)","v":""},"日",null,{"$f":"IF(OR(申請者情報!O28=\"\",$E$56>=5),\"\",申請者情報!O28)","v":""},null,null,null,null,null,{"$f":"IF(OR(申請者情報!V28=\"\",$E$56>=5),\"\",申請者情報!V28)","v":""}]
[null,{"$f":"IF(OR(申請者情報!C29=\"\",$E$56>=5),\"\",申請者情報!C29)","v":""},null,"年",{"$f":"IF(OR(申請者情報!E29=\"\",$E$56>=5),\"\",申請者情報!E29)","v":""},"月",{"$f":"IF(OR(申請者情報!G29=\"\",$E$56>=5),\"\",申請者情報!G29)","v":""},"日",null,{"$f":"IF(OR(申請者情報!I29=\"\",$E$56>=5),\"\",申請者情報!I29)","v":""},null,"年",{"$f":"IF(OR(申請者情報!K29=\"\",$E$56>=5),\"\",申請者情報!K29)","v":""},"月",{"$f":"IF(OR(申請者情報!M29=\"\",$E$56>=5),\"\",申請者情報!M29)","v":""},"日",null,{"$f":"IF(OR(申請者情報!O29=\"\",$E$56>=5),\"\",申請者情報!O29)","v":""},null,null,null,null,null,{"$f":"IF(OR(申請者情報!V29=\"\",$E$56>=5),\"\",申請者情報!V29)","v":""}]
[null,{"$f":"IF(OR(申請者情報!C30=\"\",$E$56>=5),\"\",申請者情報!C30)","v":""},null,"年",{"$f":"IF(OR(申請者情報!E30=\"\",$E$56>=5),\"\",申請者情報!E30)","v":""},"月",{"$f":"IF(OR(申請者情報!G30=\"\",$E$56>=5),\"\",申請者情報!G30)","v":""},"日",null,{"$f":"IF(OR(申請者情報!I30=\"\",$E$56>=5),\"\",申請者情報!I30)","v":""},null,"年",{"$f":"IF(OR(申請者情報!K30=\"\",$E$56>=5),\"\",申請者情報!K30)","v":""},"月",{"$f":"IF(OR(申請者情報!M30=\"\",$E$56>=5),\"\",申請者情報!M30)","v":""},"日",null,{"$f":"IF(OR(申請者情報!O30=\"\",$E$56>=5),\"\",申請者情報!O30)","v":""},null,null,null,null,null,{"$f":"IF(OR(申請者情報!V30=\"\",$E$56>=5),\"\",申請者情報!V30)","v":""}]

{"sheet":"願書②","index":12,"n_rows":61,"n_cols":28,"rows_kept":61,"cut":false,"hidden":true,"merged":[[52,6,52,11],[56,15,57,16],[56,18,57,19],[56,21,57,22],[59,16,60,23],[49,15,49,25],[48,1,48,3],[48,4,48,5],[48,6,48,8],[48,9,48,10],[48,11,48,14],[48,15,48,25],[49,1,49,3],[49,4,49,5],[49,6,49,8],[49,9,49,10],[49,11,49,14],[47,15,47,25],[46,1,46,3],[46,4,46,5],[46,6,46,8],[46,9,46,10],[46,11,46,14],[46,15,46,25],[47,1,47,3],[47,4,47,5],[47,6,47,8],[47,9,47,10],[47,11,47,14],[45,15,45,25],[44,1,44,3],[44,4,44,5],[44,6,44,8],[44,9,44,10],[44,11,44,14],[44,15,44,25],[45,1,45,3],[45,4,45,5],[45,6,45,8],[45,9,45,10],[45,11,45,14],[9,1,25,25],[32,8,33,21],[35,4,36,21],[38,4,39,21],[43,1,43,3],[43,4,43,5],[43,6,43,8],[43,9,43,10],[43,11,43,14],[43,15,43,25],[4,21,4,25],[5,1,5,2],[5,3,5,5],[5,6,5,8],[5,9,5,10],[5,11,5,13],[5,14,5,20],[5,21,5,25],[4,1,4,2],[4,3,4,5],[4,6,4,8],[4,9,4,10],[4,11,4,13],[4,14,4,20],[2,21,2,25],[3,1,3,2],[3,3,3,5],[3,6,3,8],[3,9,3,10],[3,11,3,13],[3,14,3,20],[3,21,3,25],[2,1,2,2],[2,3,2,5],[2,6,2,8],[2,9,2,10],[2,11,2,13],[2,14,2,20]]}
[16,"在日親族(父・母・配偶者・子・兄弟姉妹など)及び同居人"]
[null,"Family in Japan(Father,　mother,　spouse,son,　dauther,　brother,　sister or others) or co-residents"]
[null,"続柄",null,"氏名",null,null,"生年月日",null,null,"国籍",null,"同居予定",null,null,"勤務先・通学先"]
[null,"Relationship",null,"Name",null,null,"Date of birth",null,null,"Nationality",null,null,null,null,"Place of employment/school"]
[null,{"$f":"IF(申請者情報!F38=\"\",\"\",申請者情報!F38)","v":""},null,{"$f":"IF(申請者情報!C38=\"\",\"无\",申請者情報!C38)","v":"无"},null,null,{"$f":"IF(申請者情報!I38=\"\",\"\",DATE(申請者情報!I38,申請者情報!K38,申請者情報!M38))","v":""},null,null,{"$f":"IF(申請者情報!O38=\"\",\"\",申請者情報!O38)","v":""},null,{"$f":"IF(申請者情報!Q38=\"\",\"\",申請者情報!Q38)","v":""},null,null,{"$f":"IF(申請者情報!S38=\"\",\"\",申請者情報!S38)","v":""},null,null,null,null,null,null,{"$f":"IF(申請者情報!V38=\"\",\"\",申請者情報!V38)","v":""},null,null,null,null,null,"※在日没有同居人的话，请在“氏名”项目内填“无”"]
[null,{"$f":"IF(申請者情報!F39=\"\",\"\",申請者情報!F39)","v":""},null,{"$f":"IF(申請者情報!C39=\"\",\"\",申請者情報!C39)","v":""},null,null,null,null,null,{"$f":"IF(申請者情報!O39=\"\",\"\",申請者情報!O39)","v":""},null,{"$f":"IF(申請者情報!Q39=\"\",\"\",申請者情報!Q39)","v":""},null,null,{"$f":"IF(申請者情報!S39=\"\",\"\",申請者情報!S39)","v":""},null,null,null,null,null,null,{"$f":"IF(申請者情報!V39=\"\",\"\",申請者情報!V39)","v":""}]
[]
[17,"日本語学習の理由"]
[null,"Purpose of study"]
[null,{"$f":"IF(申請者情報!C40=\"\",\"\",申請者情報!C40)","v":""}]
[]
[]
[]
[]
[]
[]
[]
[]
[]
[]
[]
[]
[]
[]
[]
[]
[]
[]
[18,"日本語学習修了後の予定"]
[null,"Plan after completing study"]
[null,"■","進学"]
[null,null,"Futher study in Japan"]
[null,null,"・進学希望先学校名："]
[null,null,"   Name of school you wish to study in"]
[]
[null,null,"・希望専攻："]
[null,null,"   Major"]
[]
[null,"□","その他："]
[null,null,"Others"]
[]
[19,"家族"]
[null,"Family"]
[null,"氏名",null,null,"年齢",null,"生年月日",null,null,"続柄",null,"職業",null,null,null,"住所"]
[null,"Name",null,null,"Age",null,"Birthday",null,null,"Relationship",null,"Occupation",null,null,null,"Adress"]
[null,{"$f":"IF(申請者情報!C32=\"\",\"\",申請者情報!C32)","v":""},null,null,{"$f":"IF(G46=\"\",\"\",DATEDIF(G46,IF(NOT(OR($P$57=\"\",$S$57=\"\",$V$57=\"\")),DATE($P$57,$S$57,$V$57),\"\"),\"Y\"))","v":""},null,{"$f":"IF(申請者情報!I32=\"\",\"\",DATE(申請者情報!I32,申請者情報!K32,申請者情報!M32))","v":""},null,null,{"$f":"IF(申請者情報!F32=\"\",\"\",申請者情報!F32)","v":""},null,{"$f":"IF(申請者情報!O32=\"\",\"\",申請者情報!O32)","v":""},null,null,null,{"$f":"IF(申請者情報!R32=\"\",\"\",申請者情報!R32)","v":""}]
[null,{"$f":"IF(申請者情報!C33=\"\",\"\",申請者情報!C33)","v":""},null,null,{"$f":"IF(G47=\"\",\"\",DATEDIF(G47,IF(NOT(OR($P$57=\"\",$S$57=\"\",$V$57=\"\")),DATE($P$57,$S$57,$V$57),\"\"),\"Y\"))","v":""},null,{"$f":"IF(申請者情報!I33=\"\",\"\",DATE(申請者情報!I33,申請者情報!K33,申請者情報!M33))","v":""},null,null,{"$f":"IF(申請者情報!F33=\"\",\"\",申請者情報!F33)","v":""},null,{"$f":"IF(申請者情報!O33=\"\",\"\",申請者情報!O33)","v":""},null,null,null,{"$f":"IF(申請者情報!R33=\"\",\"\",申請者情報!R33)","v":""}]
[null,{"$f":"IF(申請者情報!C34=\"\",\"\",申請者情報!C34)","v":""},null,null,"",null,{"$f":"IF(申請者情報!I34=\"\",\"\",DATE(申請者情報!I34,申請者情報!K34,申請者情報!M34))","v":""},null,null,{"$f":"IF(申請者情報!F34=\"\",\"\",申請者情報!F34)","v":""},null,{"$f":"IF(申請者情報!O34=\"\",\"\",申請者情報!O34)","v":""},null,null,null,{"$f":"IF(申請者情報!R34=\"\",\"\",申請者情報!R34)","v":""}]
[null,{"$f":"IF(申請者情報!C35=\"\",\"\",申請者情報!C35)","v":""},null,null,"",null,null,null,null,{"$f":"IF(申請者情報!F35=\"\",\"\",申請者情報!F35)","v":""},null,{"$f":"IF(申請者情報!O35=\"\",\"\",申請者情報!O35)","v":""},null,null,null,{"$f":"IF(申請者情報!R35=\"\",\"\",申請者情報!R35)","v":""}]
[null,{"$f":"IF(申請者情報!C36=\"\",\"\",申請者情報!C36)","v":""},null,null,"",null,null,null,null,{"$f":"IF(申請者情報!F36=\"\",\"\",申請者情報!F36)","v":""},null,{"$f":"IF(申請者情報!O36=\"\",\"\",申請者情報!O36)","v":""},null,null,null,{"$f":"IF(申請者情報!R36=\"\",\"\",申請者情報!R36)","v":""}]
[]
[]
["上記の内容は事実であり、　私",null,null,null,null,null,{"$f":"IF(申請者情報!E3=\"\",\"\",申請者情報!E3)","v":""},null,null,null,null,null,"が直筆したものです。"]
["（I filled in this form myself and declare that all information I have given on this application is true and correct）"]
[]
[]
[null,null,null,null,null,null,null,null,null,null,null,null,"作成年月日：",null,null,2022,null,"年",2,null,"月",2,null,"日"]
[null,null,null,null,null,null,null,null,null,null,null,null,"Application date",null,null,null,null,"Year",null,null,"Mon",null,null,"Day"]
[]
[null,null,null,null,null,null,null,null,null,null,null,null,"本人署名："]
[null,null,null,null,null,null,null,null,null,null,null,null,"Signature of applicant"]

{"sheet":"願書② (H)","index":13,"n_rows":61,"n_cols":24,"rows_kept":61,"cut":false,"hidden":true,"merged":[[52,6,52,11],[56,15,57,16],[56,18,57,19],[56,21,57,22],[59,16,60,23],[49,15,49,25],[48,1,48,3],[48,4,48,5],[48,6,48,8],[48,9,48,10],[48,11,48,14],[48,15,48,25],[49,1,49,3],[49,4,49,5],[49,6,49,8],[49,9,49,10],[49,11,49,14],[47,15,47,25],[46,1,46,3],[46,4,46,5],[46,6,46,8],[46,9,46,10],[46,11,46,14],[46,15,46,25],[47,1,47,3],[47,4,47,5],[47,6,47,8],[47,9,47,10],[47,11,47,14],[45,15,45,25],[44,1,44,3],[44,4,44,5],[44,6,44,8],[44,9,44,10],[44,11,44,14],[44,15,44,25],[45,1,45,3],[45,4,45,5],[45,6,45,8],[45,9,45,10],[45,11,45,14],[9,1,25,25],[32,8,33,21],[35,4,36,21],[38,4,39,21],[43,1,43,3],[43,4,43,5],[43,6,43,8],[43,9,43,10],[43,11,43,14],[43,15,43,25],[4,21,4,25],[5,1,5,2],[5,3,5,5],[5,6,5,8],[5,9,5,10],[5,11,5,13],[5,14,5,20],[5,21,5,25],[4,1,4,2],[4,3,4,5],[4,6,4,8],[4,9,4,10],[4,11,4,13],[4,14,4,20],[2,21,2,25],[3,1,3,2],[3,3,3,5],[3,6,3,8],[3,9,3,10],[3,11,3,13],[3,14,3,20],[3,21,3,25],[2,1,2,2],[2,3,2,5],[2,6,2,8],[2,9,2,10],[2,11,2,13],[2,14,2,20]]}
[16,"在日親族(父・母・配偶者・子・兄弟姉妹など)及び同居人"]
[null,"Family in Japan(Father,　mother,　spouse,son,　dauther,　brother,　sister or others) or co-residents"]
[null,"続柄",null,"氏名",null,null,"生年月日",null,null,"国籍",null,"同居予定",null,null,"勤務先・通学先"]
[null,"Relationship",null,"Name",null,null,"Date of birth",null,null,"Nationality",null,null,null,null,"Place of employment/school"]
[null,{"$f":"IF(申請者情報!F38=\"\",\"\",申請者情報!F38)","v":""},null,{"$f":"IF(申請者情報!C38=\"\",\"なし\",申請者情報!C38)","v":"なし"},null,null,{"$f":"IF(申請者情報!I38=\"\",\"\",DATE(申請者情報!I38,申請者情報!K38,申請者情報!M38))","v":""},null,null,{"$f":"IF(申請者情報!O38=\"\",\"\",申請者情報!O38)","v":""},null,{"$f":"IF(申請者情報!O38=\"\",\"\",申請者情報!O38)","v":""},null,null,{"$f":"IF(申請者情報!S38=\"\",\"\",申請者情報!S38)","v":""},null,null,null,null,null,null,{"$f":"IF(申請者情報!V38=\"\",\"\",申請者情報!V38)","v":""}]
[null,{"$f":"IF(申請者情報!F39=\"\",\"\",申請者情報!F39)","v":""},null,{"$f":"IF(申請者情報!C39=\"\",\"\",申請者情報!C39)","v":""},null,null,{"$f":"IF(願書②!G6=\"\",\"\",願書②!G6)","v":""},null,null,{"$f":"IF(申請者情報!O39=\"\",\"\",申請者情報!O39)","v":""},null,{"$f":"IF(申請者情報!O39=\"\",\"\",申請者情報!O39)","v":""},null,null,{"$f":"IF(申請者情報!S39=\"\",\"\",申請者情報!S39)","v":""},null,null,null,null,null,null,{"$f":"IF(申請者情報!V39=\"\",\"\",申請者情報!V39)","v":""}]
[]
[17,"日本語学習の理由"]
[null,"Purpose of study"]
[null,{"$f":"IF(申請者情報!C40=\"\",\"\",申請者情報!C40)","v":""}]
[]
[]
[]
[]
[]
[]
[]
[]
[]
[]
[]
[]
[]
[]
[]
[]
[]
[]
[18,"日本語学習修了後の予定"]
[null,"Plan after completing study"]
[null,"■","進学"]
[null,null,"Futher study in Japan"]
[null,null,"・進学希望先学校名：",null,null,null,null,null,{"$f":"IF(願書②!I33=\"\",\"\",願書②!I33)","v":""}]
[null,null,"   Name of school you wish to study in"]
[]
[null,null,"・希望専攻：",null,{"$f":"IF(願書②!E36=\"\",\"\",願書②!E36)","v":""}]
[null,null,"   Major"]
[]
[null,"□","その他：",null,{"$f":"IF(願書②!E39=\"\",\"\",願書②!E39)","v":""}]
[null,null,"Others"]
[]
[19,"家族"]
[null,"Family"]
[null,"氏名",null,null,"年齢",null,"生年月日",null,null,"続柄",null,"職業",null,null,null,"住所"]
[null,"Name",null,null,"Age",null,"Birthday",null,null,"Relationship",null,"Occupation",null,null,null,"Adress"]
[null,{"$f":"IF(申請者情報!C32=\"\",\"\",申請者情報!C32)","v":""},null,null,{"$f":"IF(願書②!E46=\"\",\"\",願書②!E46)","v":""},null,{"$f":"IF(願書②!G46=\"\",\"\",願書②!G46)","v":""},null,null,{"$f":"IF(申請者情報!F32=\"\",\"\",申請者情報!F32)","v":""},null,{"$f":"IF(申請者情報!O32=\"\",\"\",申請者情報!O32)","v":""},null,null,null,{"$f":"IF(申請者情報!R32=\"\",\"\",申請者情報!R32)","v":""}]
[null,{"$f":"IF(申請者情報!C33=\"\",\"\",申請者情報!C33)","v":""},null,null,{"$f":"IF(願書②!E47=\"\",\"\",願書②!E47)","v":""},null,{"$f":"IF(願書②!G47=\"\",\"\",願書②!G47)","v":""},null,null,{"$f":"IF(申請者情報!F33=\"\",\"\",申請者情報!F33)","v":""},null,{"$f":"IF(申請者情報!O33=\"\",\"\",申請者情報!O33)","v":""},null,null,null,{"$f":"IF(申請者情報!R33=\"\",\"\",申請者情報!R33)","v":""}]
[null,{"$f":"IF(申請者情報!C34=\"\",\"\",申請者情報!C34)","v":""},null,null,{"$f":"IF(願書②!E48=\"\",\"\",願書②!E48)","v":""},null,{"$f":"IF(願書②!G48=\"\",\"\",願書②!G48)","v":""},null,null,{"$f":"IF(申請者情報!F34=\"\",\"\",申請者情報!F34)","v":""},null,{"$f":"IF(申請者情報!O34=\"\",\"\",申請者情報!O34)","v":""},null,null,null,{"$f":"IF(申請者情報!R34=\"\",\"\",申請者情報!R34)","v":""}]
[null,{"$f":"IF(申請者情報!C35=\"\",\"\",申請者情報!C35)","v":""},null,null,{"$f":"IF(願書②!E49=\"\",\"\",願書②!E49)","v":""},null,{"$f":"IF(願書②!G49=\"\",\"\",願書②!G49)","v":""},null,null,{"$f":"IF(申請者情報!F35=\"\",\"\",申請者情報!F35)","v":""},null,{"$f":"IF(申請者情報!O35=\"\",\"\",申請者情報!O35)","v":""},null,null,null,{"$f":"IF(申請者情報!R35=\"\",\"\",申請者情報!R35)","v":""}]
[null,{"$f":"IF(申請者情報!C36=\"\",\"\",申請者情報!C36)","v":""},null,null,{"$f":"IF(願書②!E50=\"\",\"\",願書②!E50)","v":""},null,{"$f":"IF(願書②!G50=\"\",\"\",願書②!G50)","v":""},null,null,{"$f":"IF(申請者情報!F36=\"\",\"\",申請者情報!F36)","v":""},null,{"$f":"IF(申請者情報!O36=\"\",\"\",申請者情報!O36)","v":""},null,null,null,{"$f":"IF(申請者情報!R36=\"\",\"\",申請者情報!R36)","v":""}]
[]
[]
["上記の内容は事実であり、　私",null,null,null,null,null,{"$f":"IF(申請者情報!E3=\"\",\"\",申請者情報!E3)","v":""},null,null,null,null,null,"が直筆したものです。"]
["（I filled in this form myself and declare that all information I have given on this application is true and correct）"]
[]
[]
[null,null,null,null,null,null,null,null,null,null,null,null,"作成年月日：",null,null,{"$f":"IF(願書②!P57=\"\",\"\",願書②!P57)","v":2022},null,"年",{"$f":"IF(願書②!S57=\"\",\"\",願書②!S57)","v":2},null,"月",{"$f":"IF(願書②!V57=\"\",\"\",願書②!V57)","v":2},null,"日"]
[null,null,null,null,null,null,null,null,null,null,null,null,"Application date",null,null,null,null,"Year",null,null,"Mon",null,null,"Day"]
[]
[null,null,null,null,null,null,null,null,null,null,null,null,"本人署名："]
[null,null,null,null,null,null,null,null,null,null,null,null,"Signature of applicant"]

{"sheet":"経費支弁書","index":14,"n_rows":63,"n_cols":27,"rows_kept":63,"cut":false,"hidden":true,"merged":[[57,16,58,18],[57,20,58,21],[57,23,58,24],[61,17,62,25],[22,1,24,25],[35,1,37,25],[44,4,44,25],[46,4,46,25],[48,6,48,13],[48,19,48,26],[50,7,50,25],[52,9,52,13],[52,21,52,25],[28,16,28,20],[30,16,30,20],[42,6,42,13],[42,19,42,26],[13,4,13,8],[15,4,15,8],[17,0,17,26],[0,0,0,26],[1,0,1,26],[9,4,9,8],[9,19,9,25],[11,4,11,8],[11,11,11,12],[11,16,11,17],[11,24,11,26]]}
["経費支弁書"]
["Written Proof of Supporter"]
[]
[]
["日本国法務大臣　殿（To：Minister of Justice）"]
[]
[]
["申請者情報（Student's Information）"]
[]
[null,"国籍（Nationality）",null,null,{"$f":"IF(申請者情報!E4=\"\",\"\",申請者情報!E4)","v":""},null,null,null,null,null,null,null,null,"学生氏名（Student's Name）",null,null,null,null,null,{"$f":"IF(申請者情報!E3=\"\",\"\",申請者情報!E3)","v":""}]
[]
[null,"生年月日（Birthday）",null,null,{"$f":"IF(申請者情報!T3=\"\",\"\",申請者情報!T3)","v":""},null,null,null,null,"年（Year）",null,{"$f":"IF(申請者情報!V3=\"\",\"\",申請者情報!V3)","v":""},null,"月（Month）",null,null,{"$f":"IF(申請者情報!X3=\"\",\"\",申請者情報!X3)","v":""},null,"日（Day）",null,null,"性別（Sex）",null,null,{"$f":"IF(申請者情報!Q3=\"\",\"\",申請者情報!Q3)","v":""}]
[]
[null,"私（経費支弁者）",null,null,{"$f":"IF(申請者情報!F44=\"\",\"\",申請者情報!F44)","v":""},null,null,null,null,"は、この度、上記の者の日本国滞在中の経費支弁者として、経費支弁の引受経緯を"]
["説明するとともに、下記のとおり経費支弁することを誓約します。"]
["I（finacial supporter）",null,null,null,{"$f":"IF(申請者情報!F44=\"\",\"\",申請者情報!F44)","v":""},null,null,null,null,"hereby swear that I am the applicant's supporter while they are in Japan."]
[]
["記"]
[]
[1," 経費支弁の引受経緯（申請者の経費の支弁を引き受けた経緯及び申請者との関係について具体的に記載して下さい。"]
[null,"The reason for financially supporting the applicant.（Please explain clearly the relationship between the financial sponsor and the applicant.）"]
[]
[null,{"$f":"IF(申請者情報!F48=\"\",\"\",申請者情報!F48)","v":""}]
[]
[]
[]
[2,"経費支弁内容（Details of financial Support method）"]
[]
[null,null,"（1）学費（Tuition）",null,null,null,null,null,null,"年間（annual）",null,null,null,null,null,null,891300,null,null,null,null,"円（Yen）"]
[]
[null,null,"（2）生活費（Living Expenses）",null,null,null,null,null,null,"月額（Monthly amount）",null,null,null,null,null,null,100000,null,null,null,null,"円（Yen）"]
[]
[3,"支弁方法（送金・振込等支弁方法を具体的にお書きください。）"]
[null,"The supporting method ( Please clearly state the methods of money transferring. ) "]
[]
[null,{"$f":"IF(申請者情報!R48=\"\",\"\",申請者情報!R48)","v":""}]
[]
[]
[]
[]
["経費支弁者（Financial Supporter）"]
[]
[null,"学生との関係（Relationship）",null,null,null,null,{"$f":"IF(申請者情報!L44=\"\",\"\",申請者情報!L44)","v":""},null,null,null,null,null,null,null,null,"電話番号（Tel.）",null,null,null,{"$f":"IF(申請者情報!R44=\"\",\"\",申請者情報!R44)","v":""}]
[]
[null,"現住所（Address）",null,null,{"$f":"IF(申請者情報!F45=\"\",\"\",申請者情報!F45)","v":""}]
[]
[null,"戸籍住所（Address）",null,null,{"$f":"IF(申請者情報!R45=\"\",\"\",申請者情報!R45)","v":""}]
[]
[null,"勤務先名（Employer's name）",null,null,null,null,{"$f":"IF(申請者情報!R46=\"\",\"\",申請者情報!R46)","v":""},null,null,null,null,null,null,null,null,"職業（Occupation）",null,null,null,{"$f":"IF(申請者情報!F46=\"\",\"\",申請者情報!F46)","v":""}]
[]
[null,"勤務先住所（Employer's address）",null,null,null,null,null,{"$f":"IF(申請者情報!F47=\"\",\"\",申請者情報!F47)","v":""}]
[]
[null,"勤務先電話番号（Official telephone no.）",null,null,null,null,null,null,null,{"$f":"IF(申請者情報!L46=\"\",\"\",申請者情報!L46)","v":""},null,null,null,null,null,"年間収入（Annual income）",null,null,null,null,null,{"$f":"IF(申請者情報!R47=\"\",\"\",申請者情報!R47)","v":""},null,null,null,null,"元"]
[]
[]
[]
[]
[null,null,null,null,null,null,null,null,null,null,null,null,null,"作成年月日：",null,null,null,null,null,"年",null,null,"月",null,null,"日"]
[null,null,null,null,null,null,null,null,null,null,null,null,null,"Application date",null,null,null,null,null,"Year",null,null,"Mon",null,null,"Day"]
[]
[]
[null,null,null,null,null,null,null,null,null,null,null,null,null,"本人署名："]
[null,null,null,null,null,null,null,null,null,null,null,null,null,"Signature of applicant"]

{"sheet":"経費支弁書 (H)","index":15,"n_rows":63,"n_cols":27,"rows_kept":63,"cut":false,"hidden":true,"merged":[[53,24,53,25],[57,16,58,18],[57,20,58,21],[57,23,58,24],[61,17,62,25],[22,1,24,25],[35,1,37,25],[44,4,44,25],[46,4,46,25],[48,6,48,13],[48,19,48,26],[50,7,50,25],[52,9,52,13],[52,21,52,25],[28,16,28,20],[30,16,30,20],[42,6,42,13],[42,19,42,26],[13,4,13,8],[15,4,15,8],[17,0,17,26],[0,0,0,26],[1,0,1,26],[9,4,9,8],[9,19,9,25],[11,4,11,8],[11,11,11,12],[11,16,11,17],[11,24,11,26]]}
["経費支弁書"]
["Written Proof of Supporter"]
[]
[]
["日本国法務大臣　殿（To：Minister of Justice）"]
[]
[]
["申請者情報（Student's Information）"]
[]
[null,"国籍（Nationality）",null,null,{"$f":"IF(申請者情報!E4=\"\",\"\",申請者情報!E4)","v":""},null,null,null,null,null,null,null,null,"学生氏名（Student's Name）",null,null,null,null,null,{"$f":"IF('願書① (H)'!E7=\"\",\"\",'願書① (H)'!E7)","v":""}]
[]
[null,"生年月日（Birthday）",null,null,{"$f":"IF(申請者情報!T3=\"\",\"\",申請者情報!T3)","v":""},null,null,null,null,"年（Year）",null,{"$f":"IF(申請者情報!V3=\"\",\"\",申請者情報!V3)","v":""},null,"月（Month）",null,null,{"$f":"IF(申請者情報!X3=\"\",\"\",申請者情報!X3)","v":""},null,"日（Day）",null,null,"性別（Sex）",null,null,{"$f":"IF(申請者情報!Q3=\"\",\"\",申請者情報!Q3)","v":""}]
[]
[null,"私（経費支弁者）",null,null,{"$f":"IF(申請者情報!F44=\"\",\"\",申請者情報!F44)","v":""},null,null,null,null,"は、この度、上記の者の日本国滞在中の経費支弁者として、経費支弁の引受経緯を"]
["説明するとともに、下記のとおり経費支弁することを誓約します。"]
["I（finacial supporter）",null,null,null,{"$f":"IF(申請者情報!F44=\"\",\"\",申請者情報!F44)","v":""},null,null,null,null,"hereby swear that I am the applicant's supporter while they are in Japan."]
[]
["記"]
[]
[1," 経費支弁の引受経緯（申請者の経費の支弁を引き受けた経緯及び申請者との関係について具体的に記載して下さい。"]
[null,"The reason for financially supporting the applicant.（Please explain clearly the relationship between the financial sponsor and the applicant.）"]
[]
[null,{"$f":"IF(申請者情報!F48=\"\",\"\",申請者情報!F48)","v":""}]
[]
[]
[]
[2,"経費支弁内容（Details of financial Support method）"]
[]
[null,null,"（1）学費（Tuition）",null,null,null,null,null,null,"年間（annual）",null,null,null,null,null,null,891300,null,null,null,null,"円（Yen）"]
[]
[null,null,"（2）生活費（Living Expenses）",null,null,null,null,null,null,"月額（Monthly amount）",null,null,null,null,null,null,100000,null,null,null,null,"円（Yen）"]
[]
[3,"支弁方法（送金・振込等支弁方法を具体的にお書きください。）"]
[null,"The supporting method ( Please clearly state the methods of money transferring. ) "]
[]
[null,{"$f":"IF(申請者情報!R48=\"\",\"\",申請者情報!R48)","v":""}]
[]
[]
[]
[]
["経費支弁者（Financial Supporter）"]
[]
[null,"学生との関係（Relationship）",null,null,null,null,{"$f":"IF(申請者情報!L44=\"\",\"\",申請者情報!L44)","v":""},null,null,null,null,null,null,null,null,"電話番号（Tel.）",null,null,null,{"$f":"IF(申請者情報!L44=\"\",\"\",申請者情報!L44)","v":""}]
[]
[null,"現住所（Address）",null,null,{"$f":"IF(申請者情報!F45=\"\",\"\",申請者情報!F45)","v":""}]
[]
[null,"戸籍住所（Address）",null,null,{"$f":"IF(申請者情報!R45=\"\",\"\",申請者情報!R45)","v":""}]
[]
[null,"勤務先名（Employer's name）",null,null,null,null,{"$f":"IF(申請者情報!R46=\"\",\"\",申請者情報!R46)","v":""},null,null,null,null,null,null,null,null,"職業（Occupation）",null,null,null,{"$f":"IF(申請者情報!F46=\"\",\"\",申請者情報!F46)","v":""}]
[]
[null,"勤務先住所（Employer's address）",null,null,null,null,null,{"$f":"IF(申請者情報!F47=\"\",\"\",申請者情報!F47)","v":""}]
[]
[null,"勤務先電話番号（Official telephone no.）",null,null,null,null,null,null,null,{"$f":"IF(申請者情報!L46=\"\",\"\",申請者情報!L46)","v":""},null,null,null,null,null,"年間収入（Annual income）",null,null,null,null,null,{"$f":"IF(申請者情報!R47=\"\",\"\",DOLLAR(TEXT(申請者情報!R47,\"#,##0\")*学校情報!J1))","v":""},null,null,null,null,"円"]
[null,null,null,null,null,null,null,null,null,null,null,null,null,null,null,null,null,null,null,null,null,"（1人民元 =",null,null,{"$f":"学校情報!J1","v":0},null,"円）"]
[]
[]
[]
[null,null,null,null,null,null,null,null,null,null,null,null,null,"作成年月日：",null,null,{"$f":"IF(経費支弁書!Q58=\"\",\"\",経費支弁書!Q58)","v":""},null,null,"年",{"$f":"IF(経費支弁書!U58=\"\",\"\",経費支弁書!U58)","v":""},null,"月",{"$f":"IF(経費支弁書!X58=\"\",\"\",経費支弁書!X58)","v":""},null,"日"]
[null,null,null,null,null,null,null,null,null,null,null,null,null,"Application date",null,null,null,null,null,"Year",null,null,"Mon",null,null,"Day"]
[]
[]
[null,null,null,null,null,null,null,null,null,null,null,null,null,"本人署名：",null,null,null,{"$f":"IF(E14=\"\",\"\",E14)","v":""}]
[null,null,null,null,null,null,null,null,null,null,null,null,null,"Signature of applicant"]